Workbook

Sheet Mode d'emploi

Sheet A remplir
C1: Projet de financement d'investissement eau
B4: Définition du projet :
B6: Libellé du projet
B7: Projet eau potable
B9: Nom de la Commune
B10: La Balme sur Hers | H10: A REMPLIR OBLIGATOIREMENT !!
B12: Type de projet | D12: ZRR | F12: Nombre d'habitants de la commune | H12: Taux actuel du livret A | J12: Taux prêt BEI à 15 ans
B13: Traitement eau potable (bacteriologie, turbidité, arsenic) | D13: Oui | F13: 60000 | H13: 0,75% | J13: 1,41%
B15: Date de début des travaux | D15: Prioritaire | J15: Taux prêt BEI à 20 ans
B16: (au format JJ/MM/AAAA) | D16: Oui | J16: 1,69%
B17: 18/02/2019
J18: Taux prêt BEI à 25 ans
B19: Date de début de financement | J19: 1,87%
B20: (au format JJ/MM/AAAA)
B21: 2019-01-01
B25: Coût des travaux (en € HT) :
B27: Montant total du projet
B28: 700000 | D28: =IF(B28=B33+D33+F33+H33+J33,"","Attention, le montant total du projet n'est pas égal à la somme des 5 parties détaillées !!") -> 
B30: dont:
B32: en terrain | D32: en acquisition bâtiment | F32: voirie | H32: Construction / travaux | J32: Autres
B33: 0 | D33: 0 | F33: 0 | H33: 700000 | J33: 0
B37: Budget principal de la collectivité (année en cours en € HT) :
B39: Budget principal | D39: Encours de dette | F39: Epargne brute | H39: Epargne nette | J39: Annuité d'emprunt
B40: 0 | D40: 0 | F40: 0 | H40: 0 | J40: 0
B42: Si d'autres projets d'investissement sont déjà décidés et inscrits au budget principal mais dont le financement n'apparait pas encore dans l'encours de dette,
B43: veuillez en précisez le montant total, la durée d'endettement et le montant des annuités.
B45: Montant | D45: Durée | F45: Annuité
B46: 0 | D46: 0 | F46: 0
B50: Budget annexe de la collectivité (année en cours en € HT) :
B52: Budget annexe | D52: Encours de dette | F52: Epargne brute | H52: Epargne nette | J52: Annuité
B53: 0 | D53: 400000 | F53: 400000 | H53: 300000 | J53: 50000
B55: Si d'autres projets d'investissement sont déjà décidés et inscrits au budget annexe mais dont le financement n'apparait pas encore dans l'encours de dette,
B56: veuillez en précisez le montant total, la durée d'endettement et le montant des annuités.
B58: Montant | D58: Durée | F58: Annuité
B59: 0 | D59: 0 | F59: 0
B63: Eventuellement pour cette opération (en €) :
B65: Prêt autre que CDC (montant) | D65: Durée | F65: Taux | H65: Annuité
B66: 0 | D66: 15 | F66: 1,50% | H66: =(B66*F66)/(1-(1+F66)^(-D66)) -> 0
B67: (obtenu ou demandé)
B69: Montant des fonds propres mobilisés pour le projet eau(en €)
B70: 180000
B73: Total des subventions autres que AEAG (en €)
B74: 50000
B78: Eligibilité du projet au financement AEAG et CDC :
B80: =IF((B17)<TODAY(),"Non éligible, les travaux ont déjà commencé", IF(B13="Autre","Type de travaux non éligible","Projet a priori éligible")) -> Projet a priori éligible
B84: Financements de l'AEAG et de la Caisse des dépôts envisagés (en €) :
A86: Subvention AEAG :
B87: Subvention AEAG | D87: Montant en €
B88: =IF(B13='Ne pas toucher'!T2,IF(D16="Oui",IF(D13="Oui",50%,30%),IF(D13="Oui",30%,10%)), IF(OR(B13='Ne pas toucher'!T3,B13='Ne pas toucher'!T8),50%,IF(OR(B13='Ne pas toucher'!T4,B13='Ne pas toucher'!T6),IF(D16="oui",IF(D13="oui",50%,30%),IF(D13="oui",30%,10%)),IF(B13='Ne pas toucher'!T5,IF(D13="oui",30%,0%),IF(B13='Ne pas toucher'!T7,IF(D13="oui",50%,0),50%))))) -> 0.5 | D88: =H33*B88 -> 350000
A90: Avance remboursable AEAG :
B91: Avance remboursable AEAG | D91: Montant en € | F91: Durée (en années) | H91: Différé de remboursement | J91: Annuité
B92: =IF(B13='Ne pas toucher'!A2,"30%","0%") -> 0% | D92: =H33*B92 -> 0 | F92: 15 | H92: 3 ans | J92: =D92/F92 -> 0
A94: Prêt Caisse des dépôts :
B95: Prêt CDC (type) | D95: Taux "autre prêt" CDC | F95: Montant max finançable par la CDC
B96: AQUAPRET | D96: 0,00% | F96: 200000
B98: Montant | D98: Durée souhaitée | F98: Durée du prêt | H98: Annuité | J98: Taux
B99: 120000 | D99: 47 | F99: 45 | H99: =(B99*J99)/(1-(1+J99)^(-F99)) -> 3686.371253 | J99: =IF(B96='Ne pas toucher'!A18,'A remplir'!J13,IF(B96='Ne pas toucher'!A19,'A remplir'!J16,IF(B96='Ne pas toucher'!A20,'A remplir'!J19,IF(OR(B96='Ne pas toucher'!A24,B96='Ne pas toucher'!A21),'A remplir'!H13+0.75%,IF(B96='Ne pas toucher'!A22,'A remplir'!H13+1%,'A remplir'!D96))))) -> 0.015
D101: Attention: les prêts BEI sont obligatoirement sur 15, 20 ou 25 ans
D102: Attention: la durée de l'AQUAPRET est obligatoirement entre 25 et 60 ans

Sheet Ne pas toucher
K1: Options de fenêtre formulaire : | T1: Type de projet
K2: Fenêtre modale ? | L2: Non | T2: Réseaux de transfert Réhabilitation de réseau Collecte eaux usées
K3: Valeurs initiales à vide ? | L3: Non | T3: Restructuration de l'alimentation en eau potable
D4: Amortissement prioritaire: | K4: Bouton "Annuler et fermer" visible ? | L4: Oui | T4: Station de traitement eaux usées
D5: Échéance | E5: Date | F5: annuité | G5: dont capital | H5: dont intérêts | I5: capital restant dû | K5: Onglets Etapes visibles ? | L5: Oui | T5: Extention réseau de collecte eaux usées
D6: 1 | E6: ='A remplir'!$B$17 -> 18/02/2019 | F6: =G6+H6 -> 0 | G6: =IF('Ne pas toucher'!I6>0,'A remplir'!B$66/'A remplir'!D$66,0) -> 0 | H6: =I6*'A remplir'!F$66 -> 0 | I6: ='A remplir'!B66-('A remplir'!B66/'A remplir'!D66) -> 0 | T6: Bassin de stockage, de restitution Déversoir d'orage
D7: 2 | E7: =DATE(YEAR(E6)+1,MONTH(E6),DAY(E6)) -> 2020-02-18 | F7: =G7+H7 -> 0 | G7: =IF('Ne pas toucher'!I6>0,'A remplir'!B$66/'A remplir'!D$66,0) -> 0 | H7: =I6*'A remplir'!F$66 -> 0 | I7: =IF(I6>0,I6-G6,0) -> 0 | T7: Traitement eau potable (bacteriologie, turbidité, arsenic)
D8: 3 | E8: =DATE(YEAR(E7)+1,MONTH(E7),DAY(E7)) -> 2021-02-18 | F8: 0 | G8: =IF('Ne pas toucher'!I7>0,'A remplir'!B$66/'A remplir'!D$66,0) -> 0 | H8: =I7*'A remplir'!F$66 -> 0 | I8: =IF(I7>0,I7-G7,0) -> 0 | T8: Traitement eau potable (nitrate, phytosanitaire)
A9: Subventions de l'AEAG | D9: 4 | E9: 2022-02-18 | F9: 0 | G9: =IF('Ne pas toucher'!I8>0,'A remplir'!B$66/'A remplir'!D$66,0) -> 0 | H9: =I8*'A remplir'!F$66 -> 0 | I9: 0 | T9: autres
A10: Type 1 | D10: 5 | E10: 2023-02-18 | F10: 0 | G10: =IF('Ne pas toucher'!I9>0,'A remplir'!B$66/'A remplir'!D$66,0) -> 0 | H10: =I9*'A remplir'!F$66 -> 0 | I10: 0
A11: Type 2 | D11: 6 | E11: 2024-02-18 | F11: 0 | G11: =IF('Ne pas toucher'!I10>0,'A remplir'!B$66/'A remplir'!D$66,0) -> 0 | H11: =I10*'A remplir'!F$66 -> 0 | I11: 0
A12: Type 3 | D12: 7 | E12: 2025-02-18 | F12: 0 | G12: =IF('Ne pas toucher'!I11>0,'A remplir'!B$66/'A remplir'!D$66,0) -> 0 | H12: =I11*'A remplir'!F$66 -> 0 | I12: 0
A13: Non éligible | D13: 8 | E13: 2026-02-18 | F13: 0 | G13: =IF('Ne pas toucher'!I12>0,'A remplir'!B$66/'A remplir'!D$66,0) -> 0 | H13: =I12*'A remplir'!F$66 -> 0 | I13: 0
D14: 9 | E14: 2027-02-18 | F14: 0 | G14: =IF('Ne pas toucher'!I13>0,'A remplir'!B$66/'A remplir'!D$66,0) -> 0 | H14: =I13*'A remplir'!F$66 -> 0 | I14: 0
D15: 10 | E15: 2028-02-18 | F15: 0 | G15: =IF('Ne pas toucher'!I14>0,'A remplir'!B$66/'A remplir'!D$66,0) -> 0 | H15: =I14*'A remplir'!F$66 -> 0 | I15: 0
D16: 11 | E16: 2029-02-18 | F16: 0 | G16: =IF('Ne pas toucher'!I15>0,'A remplir'!B$66/'A remplir'!D$66,0) -> 0 | H16: =I15*'A remplir'!F$66 -> 0 | I16: 0
A17: Prêt de la Caisse des dépôts | D17: 12 | E17: 2030-02-18 | F17: 0 | G17: =IF('Ne pas toucher'!I16>0,'A remplir'!B$66/'A remplir'!D$66,0) -> 0 | H17: =I16*'A remplir'!F$66 -> 0 | I17: 0
A18: Prêt BEI sur 15 ans | D18: 13 | E18: 2031-02-18 | F18: 0 | G18: =IF('Ne pas toucher'!I17>0,'A remplir'!B$66/'A remplir'!D$66,0) -> 0 | H18: =I17*'A remplir'!F$66 -> 0 | I18: 0
A19: Prêt BEI sur 20 ans | D19: 14 | E19: 2032-02-18 | F19: 0 | G19: =IF('Ne pas toucher'!I18>0,'A remplir'!B$66/'A remplir'!D$66,0) -> 0 | H19: =I18*'A remplir'!F$66 -> 0 | I19: =IF(I18>0,I18-G18,0) -> 0
A20: Prêt BEI sur 25 ans | D20: 15 | E20: 2033-02-18 | F20: 0 | G20: =IF('Ne pas toucher'!I19>0,'A remplir'!B$66/'A remplir'!D$66,0) -> 0 | H20: =I19*'A remplir'!F$66 -> 0 | I20: 0
A21: Prêt Croissance Verte | D21: 16 | E21: 2034-02-18 | F21: 0 | G21: =IF('Ne pas toucher'!I20>0,'A remplir'!B$66/'A remplir'!D$66,0) -> 0 | H21: =I20*'A remplir'!F$66 -> 0 | I21: 0
A22: Prêt au Secteur Public Local | D22: 17 | E22: 2035-02-18 | F22: 0 | G22: =IF('Ne pas toucher'!I21>0,'A remplir'!B$66/'A remplir'!D$66,0) -> 0 | H22: =I21*'A remplir'!F$66 -> 0 | I22: 0
A23: Autre prêt (indiquer le taux) | D23: 18 | E23: 2036-02-18 | F23: 0 | G23: =IF('Ne pas toucher'!I22>0,'A remplir'!B$66/'A remplir'!D$66,0) -> 0 | H23: =I22*'A remplir'!F$66 -> 0 | I23: 0
A24: AQUAPRET | D24: 19 | E24: 2037-02-18 | F24: 0 | G24: =IF('Ne pas toucher'!I23>0,'A remplir'!B$66/'A remplir'!D$66,0) -> 0 | H24: =I23*'A remplir'!F$66 -> 0 | I24: 0
D25: 20 | E25: 2038-02-18 | F25: 0 | G25: =IF('Ne pas toucher'!I24>0,'A remplir'!B$66/'A remplir'!D$66,0) -> 0 | H25: =I24*'A remplir'!F$66 -> 0 | I25: 0
D26: 21 | E26: 2039-02-18 | F26: 0 | G26: =IF('Ne pas toucher'!I25>0,'A remplir'!B$66/'A remplir'!D$66,0) -> 0 | H26: =I25*'A remplir'!F$66 -> 0 | I26: 0
D27: 22 | E27: 2040-02-18 | F27: 0 | G27: =IF('Ne pas toucher'!I26>0,'A remplir'!B$66/'A remplir'!D$66,0) -> 0 | H27: =I26*'A remplir'!F$66 -> 0 | I27: 0
A28: ZRR/ Prioritaire | D28: 23 | E28: 2041-02-18 | F28: 0 | G28: =IF('Ne pas toucher'!I27>0,'A remplir'!B$66/'A remplir'!D$66,0) -> 0 | H28: =I27*'A remplir'!F$66 -> 0 | I28: 0
A29: Oui | D29: 24 | E29: 2042-02-18 | F29: 0 | G29: =IF('Ne pas toucher'!I28>0,'A remplir'!B$66/'A remplir'!D$66,0) -> 0 | H29: =I28*'A remplir'!F$66 -> 0 | I29: 0
A30: Non | D30: 25 | E30: 2043-02-18 | F30: 0 | G30: =IF('Ne pas toucher'!I29>0,'A remplir'!B$66/'A remplir'!D$66,0) -> 0 | H30: =I29*'A remplir'!F$66 -> 0 | I30: 0
D31: 26 | E31: 2044-02-18 | F31: 0 | G31: =IF('Ne pas toucher'!I30>0,'A remplir'!B$66/'A remplir'!D$66,0) -> 0 | H31: =I30*'A remplir'!F$66 -> 0 | I31: 0
D32: 27 | E32: 2045-02-18 | F32: 0 | G32: =IF('Ne pas toucher'!I31>0,'A remplir'!B$66/'A remplir'!D$66,0) -> 0 | H32: =I31*'A remplir'!F$66 -> 0 | I32: 0
D33: 28 | E33: 2046-02-18 | F33: 0 | G33: =IF('Ne pas toucher'!I32>0,'A remplir'!B$66/'A remplir'!D$66,0) -> 0 | H33: =I32*'A remplir'!F$66 -> 0 | I33: 0
D34: 29 | E34: 2047-02-18 | F34: 0 | G34: =IF('Ne pas toucher'!I33>0,'A remplir'!B$66/'A remplir'!D$66,0) -> 0 | H34: =I33*'A remplir'!F$66 -> 0 | I34: 0
A35: Différé de remboursement avance AEAG | D35: 30 | E35: 2048-02-18 | F35: 0 | G35: =IF('Ne pas toucher'!I34>0,'A remplir'!B$66/'A remplir'!D$66,0) -> 0 | H35: =I34*'A remplir'!F$66 -> 0 | I35: 0
A36: 1 an | D36: 31 | E36: 2049-02-18 | F36: 0 | G36: =IF('Ne pas toucher'!I35>0,'A remplir'!B$66/'A remplir'!D$66,0) -> 0 | H36: =I35*'A remplir'!F$66 -> 0 | I36: 0
A37: 2 ans | D37: 32 | E37: 2050-02-18 | F37: 0 | G37: =IF('Ne pas toucher'!I36>0,'A remplir'!B$66/'A remplir'!D$66,0) -> 0 | H37: =I36*'A remplir'!F$66 -> 0 | I37: 0
A38: 3 ans | D38: 33 | E38: 2051-02-18 | F38: 0 | G38: =IF('Ne pas toucher'!I37>0,'A remplir'!B$66/'A remplir'!D$66,0) -> 0 | H38: =I37*'A remplir'!F$66 -> 0 | I38: 0
D39: 34 | E39: 2052-02-18 | F39: 0 | G39: =IF('Ne pas toucher'!I38>0,'A remplir'!B$66/'A remplir'!D$66,0) -> 0 | H39: =I38*'A remplir'!F$66 -> 0 | I39: 0
D40: 35 | E40: 2053-02-18 | F40: 0 | G40: =IF('Ne pas toucher'!I39>0,'A remplir'!B$66/'A remplir'!D$66,0) -> 0 | H40: =I39*'A remplir'!F$66 -> 0 | I40: 0
D41: 36 | E41: 2054-02-18 | F41: 0 | G41: =IF('Ne pas toucher'!I40>0,'A remplir'!B$66/'A remplir'!D$66,0) -> 0 | H41: =I40*'A remplir'!F$66 -> 0 | I41: 0
D42: 37 | E42: =DATE(YEAR(E41)+1,MONTH(E41),DAY(E41)) -> 2055-02-18 | F42: 0 | G42: =IF('Ne pas toucher'!I41>0,'A remplir'!B$66/'A remplir'!D$66,0) -> 0 | H42: =I41*'A remplir'!F$66 -> 0 | I42: =IF(I41>0,I41-G41,0) -> 0
D43: 38 | E43: 2056-02-18 | F43: 0 | G43: =IF('Ne pas toucher'!I42>0,'A remplir'!B$66/'A remplir'!D$66,0) -> 0 | H43: =I42*'A remplir'!F$66 -> 0 | I43: 0
D44: 39 | E44: 2057-02-18 | F44: 0 | G44: =IF('Ne pas toucher'!I43>0,'A remplir'!B$66/'A remplir'!D$66,0) -> 0 | H44: =I43*'A remplir'!F$66 -> 0 | I44: 0
D45: 40 | E45: 2058-02-18 | F45: 0 | G45: =IF('Ne pas toucher'!I44>0,'A remplir'!B$66/'A remplir'!D$66,0) -> 0 | H45: =I44*'A remplir'!F$66 -> 0 | I45: 0
D46: 41 | E46: 2059-02-18 | F46: 0 | G46: =IF('Ne pas toucher'!I45>0,'A remplir'!B$66/'A remplir'!D$66,0) -> 0 | H46: =I45*'A remplir'!F$66 -> 0 | I46: 0
D47: 42 | E47: =DATE(YEAR(E46)+1,MONTH(E46),DAY(E46)) -> 2060-02-18 | F47: 0 | G47: =IF('Ne pas toucher'!I46>0,'A remplir'!B$66/'A remplir'!D$66,0) -> 0 | H47: =I46*'A remplir'!F$66 -> 0 | I47: =IF(I46>0,I46-G46,0) -> 0
D48: 43 | E48: 2061-02-18 | F48: 0 | G48: =IF('Ne pas toucher'!I47>0,'A remplir'!B$66/'A remplir'!D$66,0) -> 0 | H48: =I47*'A remplir'!F$66 -> 0 | I48: 0
D49: 44 | E49: 2062-02-18 | F49: 0 | G49: =IF('Ne pas toucher'!I48>0,'A remplir'!B$66/'A remplir'!D$66,0) -> 0 | H49: =I48*'A remplir'!F$66 -> 0 | I49: 0
D50: 45 | E50: 2063-02-18 | F50: 0 | G50: =IF('Ne pas toucher'!I49>0,'A remplir'!B$66/'A remplir'!D$66,0) -> 0 | H50: =I49*'A remplir'!F$66 -> 0 | I50: 0
D51: 46 | E51: 2064-02-18 | F51: 0 | G51: =IF('Ne pas toucher'!I50>0,'A remplir'!B$66/'A remplir'!D$66,0) -> 0 | H51: =I50*'A remplir'!F$66 -> 0 | I51: 0
D52: 47 | E52: 2065-02-18 | F52: 0 | G52: =IF('Ne pas toucher'!I51>0,'A remplir'!B$66/'A remplir'!D$66,0) -> 0 | H52: =I51*'A remplir'!F$66 -> 0 | I52: 0
D53: 48 | E53: 2066-02-18 | F53: 0 | G53: =IF('Ne pas toucher'!I52>0,'A remplir'!B$66/'A remplir'!D$66,0) -> 0 | H53: =I52*'A remplir'!F$66 -> 0 | I53: 0
D54: 49 | E54: 2067-02-18 | F54: 0 | G54: =IF('Ne pas toucher'!I53>0,'A remplir'!B$66/'A remplir'!D$66,0) -> 0 | H54: =I53*'A remplir'!F$66 -> 0 | I54: 0
D55: 50 | E55: 2068-02-18 | F55: 0 | G55: =IF('Ne pas toucher'!I54>0,'A remplir'!B$66/'A remplir'!D$66,0) -> 0 | H55: =I54*'A remplir'!F$66 -> 0 | I55: 0
D56: 51 | E56: 2069-02-18 | F56: =G56+H56 -> 0 | G56: =IF('Ne pas toucher'!I55>0,'A remplir'!B$66/'A remplir'!D$66,0) -> 0 | H56: =I55*'A remplir'!F$66 -> 0 | I56: =IF(I55>0,I55-G55,0) -> 0
D57: 52 | E57: 2070-02-18 | F57: 0 | G57: =IF('Ne pas toucher'!I56>0,'A remplir'!B$66/'A remplir'!D$66,0) -> 0 | H57: =I56*'A remplir'!F$66 -> 0 | I57: 0
D58: 53 | E58: 2071-02-18 | F58: 0 | G58: =IF('Ne pas toucher'!I57>0,'A remplir'!B$66/'A remplir'!D$66,0) -> 0 | H58: =I57*'A remplir'!F$66 -> 0 | I58: 0
D59: 54 | E59: 2072-02-18 | F59: 0 | G59: =IF('Ne pas toucher'!I58>0,'A remplir'!B$66/'A remplir'!D$66,0) -> 0 | H59: =I58*'A remplir'!F$66 -> 0 | I59: 0
D60: 55 | E60: 2073-02-18 | F60: 0 | G60: =IF('Ne pas toucher'!I59>0,'A remplir'!B$66/'A remplir'!D$66,0) -> 0 | H60: =I59*'A remplir'!F$66 -> 0 | I60: 0
D61: 56 | E61: 2074-02-18 | F61: 0 | G61: =IF('Ne pas toucher'!I60>0,'A remplir'!B$66/'A remplir'!D$66,0) -> 0 | H61: =I60*'A remplir'!F$66 -> 0 | I61: 0
D62: 57 | E62: 2075-02-18 | F62: 0 | G62: =IF('Ne pas toucher'!I61>0,'A remplir'!B$66/'A remplir'!D$66,0) -> 0 | H62: =I61*'A remplir'!F$66 -> 0 | I62: 0
D63: 58 | E63: 2076-02-18 | F63: 0 | G63: =IF('Ne pas toucher'!I62>0,'A remplir'!B$66/'A remplir'!D$66,0) -> 0 | H63: =I62*'A remplir'!F$66 -> 0 | I63: 0
D64: 59 | E64: 2077-02-18 | F64: 0 | G64: =IF('Ne pas toucher'!I63>0,'A remplir'!B$66/'A remplir'!D$66,0) -> 0 | H64: =I63*'A remplir'!F$66 -> 0 | I64: 0
D65: 60 | E65: 2078-02-18 | F65: 0 | G65: =IF('Ne pas toucher'!I64>0,'A remplir'!B$66/'A remplir'!D$66,0) -> 0 | H65: =I64*'A remplir'!F$66 -> 0 | I65: 0
E70: Total : | F70: =SUM(F6:F65) -> 0

Sheet Annexe
B3: Définition de l'épargne brute :
B22: Définition de l'épargne nette :
B41: Définition de la capacité de désendettement (CAPDES) :

Sheet Résultat
A2: Projet : | B2: ='A remplir'!B7:D7 -> Projet eau potable
A3: à | B3: ='A remplir'!B10:D10 -> La Balme sur Hers
B7: Plan de financement du projet (en € HT):
B9: Emplois | C9: en € | D9: en % | E9: Ressources | F9: en € | G9: en %
B10: Terrain | C10: ='A remplir'!B33 -> 0 | D10: =C10/C$16 -> 0 | E10: Fonds propres | F10: ='A remplir'!B70 -> 180000 | G10: =F10/F$16 -> 0.2571428571
B11: Acquisition bâtiment | C11: ='A remplir'!D33 -> 0 | D11: =C11/C$16 -> 0 | E11: Subvention AEAG | F11: ='A remplir'!D88 -> 350000 | G11: =F11/F$16 -> 0.5
B12: VRD | C12: ='A remplir'!F33 -> 0 | D12: =C12/C$16 -> 0 | E12: Autres subventions | F12: ='A remplir'!B74 -> 50000 | G12: =F12/F$16 -> 0.07142857143
B13: Construction / travaux | C13: ='A remplir'!H33 -> 700000 | D13: =C13/C$16 -> 1 | E13: Avance remboursable AEAG | F13: ='A remplir'!D92 -> 0 | G13: =F13/F16 -> 0
B14: Autres | C14: ='A remplir'!J33 -> 0 | D14: =C14/C$16 -> 0 | E14: Emprunt CDC | F14: ='A remplir'!B99 -> 120000 | G14: =F14/F$16 -> 0.1714285714
E15: Autre prêt pour l'opération | F15: ='A remplir'!B66 -> 0 | G15: =F15/F$16 -> 0
B16: TOTAL | C16: =SUM(C10:C14) -> 700000 | D16: =C16/C$16 -> 1 | E16: TOTAL | F16: =SUM(F10:F15) -> 700000 | G16: =F16/F$16 -> 1
C18: =IF(C16>F16,"Il manque :","") -> 
C19: =IF(C16>F16,C16-F16,"votre projet est financé") -> votre projet est financé
C20: =IF(C16>F16," pour financer votre projet","") -> 
B22: Si les cases C16 et F16 sont en vert le plan de financement est équilibré.
C28: Analyse financière :
B37: Analyse financière de la commune sur budget annexe :
C39: Actuel | D39: Après invest
B40: encours de dette | C40: ='A remplir'!D53 -> 400000 | D40: ='A remplir'!D53+'A remplir'!B66+'A remplir'!D92+'A remplir'!B99+'A remplir'!B59 -> 520000
B41: annuité | C41: ='A remplir'!J53 -> 50000 | D41: ='A remplir'!J53+'A remplir'!H66+'A remplir'!J92+'A remplir'!H99+'A remplir'!F59 -> 53686.37125 | E41: vert si inférieur à l'épargne nette , rouge sinon
B42: montant de la dette /hab | C42: =C40/'A remplir'!F13 -> 6.666666667 | D42: =D40/'A remplir'!F13 -> 8.666666667
B43: montant invest. Projet eau /hab | D43: =('A remplir'!B99+'A remplir'!D92+'A remplir'!B66+'A remplir'!B70)/'A remplir'!F13 -> 5 | E43: vert si inférieur à 550€, orange si compris entre 550€ et 650€, rouge si supérieur à 650€
B44: CAPDES pour amortissement linéaire | C44: ='A remplir'!D53/'A remplir'!F53 -> 1 | D44: =('A remplir'!D53+'A remplir'!B66+'A remplir'!D92+'A remplir'!B99+'A remplir'!B59)/('A remplir'!F53-E81) -> 1.305876444 | E44: vert si inférieur à 12 ans, orange si compris entre 12 et 16 ans, rouge si supérieur à 16 ans
B45: CAPDES pour amortissement prioritaire | C45: ='A remplir'!D53/'A remplir'!F53 -> 1 | D45: =('A remplir'!D53+'A remplir'!B66+'A remplir'!D92+'A remplir'!B99+'A remplir'!B59)/('A remplir'!F53-L81) -> 1.305876444
B47: Si la colonne D est verte, l'investissement semble opportun, si elle est jaune, l'investissement comporte des risques, si elle est rouge, l'investissement semble trop important et nécessite d'être réétudié.
B55: Analyse financière sur budget principal : (uniquement pour les communes de moins de 3.000 habitants)
C57: Actuel | D57: Après invest
B58: encours de dette | C58: =IF('A remplir'!F13<3000,'A remplir'!D40,"") ->  | D58: =IF('A remplir'!F13<3000,'A remplir'!B99+'A remplir'!D92+'A remplir'!B66+'A remplir'!D40+'A remplir'!B46,"") -> 
B59: annuité | C59: =IF('A remplir'!F13<3000,'A remplir'!J40,"") ->  | D59: =IF('A remplir'!F13<3000,'A remplir'!H66+'A remplir'!J40+'A remplir'!H99+'A remplir'!F46,"") ->  | E59: vert si inférieur à l'épargne nette , rouge sinon
B60: montant de la dette /hab | C60: =IF('A remplir'!F13<3000,C58/'A remplir'!F13,"") ->  | D60: =IF('A remplir'!F13<3000,D58/'A remplir'!F13,"") -> 
B61: montant invest./hab | D61: =IF('A remplir'!F13<3000,D43,"") ->  | E61: vert si inférieur à 550€, orange si compris entre 550€ et 650€, rouge si supérieur à 650€
B62: CAPDES pour amortissement linéaire | C62: =IF('A remplir'!F13<3000,(C58)/'A remplir'!F40,"") ->  | D62: =IF('A remplir'!F13<3000,(D58)/('A remplir'!F40-E81),"") ->  | E62: vert si inférieur à 12 ans, orange si compris entre 12 et 16 ans, rouge si supérieur à 16 ans
B63: CAPDES pour amortissement prioraitaire | C63: =IF('A remplir'!F13<3000,C58/'A remplir'!F40,"") ->  | D63: =IF('A remplir'!F13<3000,(D58)/('A remplir'!F40-L81),"") -> 
B65: Si la colonne D est verte, l'investissement semble opportun, si elle est jaune, l'investissement comporte des risques, si elle est rouge, l'investissement semble trop important et nécessite d'être réétudié.
C73: Approximation du plan d'amortissement :
C74: Ce plan est donné uniquement à titre d'information et n'a aucune valeur d'engagement
B77: Plan d'amortissement du prêt CDC:
A79: Amortissement linéaire (prêt BEI): | H79: Amortissement prioritaire (AQUAPRET, PCV, PSPL): (Attention, ces prêts seront à taux variable)
A80: Échéance | B80: Date | C80: annuité | D80: dont capital | E80: dont intérêts | F80: capital restant dû | H80: Échéance | I80: Date | J80: annuité | K80: dont capital | L80: dont intérêts | M80: capital restant dû
A81: 1 | B81: ='A remplir'!$B$21 -> 2019-01-01 | C81: ='A remplir'!H99 -> 3686.371253 | D81: =C81-E81 -> 1886.371253 | E81: ='A remplir'!B99*'A remplir'!J99 -> 1800 | F81: ='A remplir'!B99-Résultat!D81 -> 118113.6287 | H81: 1 | I81: ='A remplir'!$B21 -> 2019-01-01 | J81: =IF(M81>0,K81+L81,0) -> 4466.666667 | K81: =IF(M81>0,'A remplir'!B$99/'A remplir'!F$99,0) -> 2666.666667 | L81: ='A remplir'!B99*'A remplir'!J99 -> 1800 | M81: ='A remplir'!B99-('A remplir'!B$99/'A remplir'!F$99) -> 117333.3333
A82: 2 | B82: =DATE(YEAR(B81)+1,MONTH(B81),DAY(B81)) -> 2020-01-01 | C82: =IF(F81>0.001,C81,0) -> 3686.371253 | D82: =C82-E82 -> 1914.666822 | E82: =F81*'A remplir'!J$99 -> 1771.704431 | F82: =IF(F81>0.001,F81-D82,0) -> 116198.9619 | H82: 2 | I82: =DATE(YEAR(I81)+1,MONTH(I81),DAY(I81)) -> 2020-01-01 | J82: =IF(M82>0,K82+L82,0) -> 4426.666667 | K82: =IF(M82>0,'A remplir'!B$99/'A remplir'!F$99,0) -> 2666.666667 | L82: =M81*'A remplir'!J$99 -> 1760 | M82: =IF(M81>0.001,M81-('A remplir'!B$99/'A remplir'!F$99),0) -> 114666.6667
A83: 3 | B83: =DATE(YEAR(B82)+1,MONTH(B82),DAY(B82)) -> 2021-01-01 | C83: =IF(F82>0.001,C82,0) -> 3686.371253 | D83: 1943.386825 | E83: =F82*'A remplir'!J$99 -> 1742.984429 | F83: =IF(F82>0.001,F82-D83,0) -> 114255.5751 | H83: 3 | I83: =DATE(YEAR(I82)+1,MONTH(I82),DAY(I82)) -> 2021-01-01 | J83: 4386.666667 | K83: =IF(M83>0,'A remplir'!B$99/'A remplir'!F$99,0) -> 2666.666667 | L83: =M82*'A remplir'!J$99 -> 1720 | M83: =IF(M82>0.001,M82-('A remplir'!B$99/'A remplir'!F$99),0) -> 112000
A84: 4 | B84: 2022-01-01 | C84: 3686.371253 | D84: 1972.537627 | E84: =F83*'A remplir'!J$99 -> 1713.833626 | F84: 112283.0375 | H84: 4 | I84: 2022-01-01 | J84: 4346.666667 | K84: =IF(M84>0,'A remplir'!B$99/'A remplir'!F$99,0) -> 2666.666667 | L84: =M83*'A remplir'!J$99 -> 1680 | M84: =IF(M83>0.001,M83-('A remplir'!B$99/'A remplir'!F$99),0) -> 109333.3333
A85: 5 | B85: 2023-01-01 | C85: 3686.371253 | D85: 2002.125691 | E85: =F84*'A remplir'!J$99 -> 1684.245562 | F85: 110280.9118 | H85: 5 | I85: 2023-01-01 | J85: 4306.666667 | K85: =IF(M85>0,'A remplir'!B$99/'A remplir'!F$99,0) -> 2666.666667 | L85: =M84*'A remplir'!J$99 -> 1640 | M85: =IF(M84>0.001,M84-('A remplir'!B$99/'A remplir'!F$99),0) -> 106666.6667
A86: 6 | B86: 2024-01-01 | C86: 3686.371253 | D86: 2032.157577 | E86: =F85*'A remplir'!J$99 -> 1654.213677 | F86: 108248.7542 | H86: 6 | I86: 2024-01-01 | J86: 4266.666667 | K86: =IF(M86>0,'A remplir'!B$99/'A remplir'!F$99,0) -> 2666.666667 | L86: =M85*'A remplir'!J$99 -> 1600 | M86: =IF(M85>0.001,M85-('A remplir'!B$99/'A remplir'!F$99),0) -> 104000
A87: 7 | B87: 2025-01-01 | C87: 3686.371253 | D87: 2062.63994 | E87: =F86*'A remplir'!J$99 -> 1623.731313 | F87: 106186.1143 | H87: 7 | I87: 2025-01-01 | J87: 4226.666667 | K87: =IF(M87>0,'A remplir'!B$99/'A remplir'!F$99,0) -> 2666.666667 | L87: =M86*'A remplir'!J$99 -> 1560 | M87: =IF(M86>0.001,M86-('A remplir'!B$99/'A remplir'!F$99),0) -> 101333.3333
A88: 8 | B88: 2026-01-01 | C88: 3686.371253 | D88: 2093.579539 | E88: =F87*'A remplir'!J$99 -> 1592.791714 | F88: 104092.5347 | H88: 8 | I88: 2026-01-01 | J88: 4186.666667 | K88: =IF(M88>0,'A remplir'!B$99/'A remplir'!F$99,0) -> 2666.666667 | L88: =M87*'A remplir'!J$99 -> 1520 | M88: =IF(M87>0.001,M87-('A remplir'!B$99/'A remplir'!F$99),0) -> 98666.66667
A89: 9 | B89: 2027-01-01 | C89: 3686.371253 | D89: 2124.983233 | E89: =F88*'A remplir'!J$99 -> 1561.388021 | F89: 101967.5515 | H89: 9 | I89: 2027-01-01 | J89: 4146.666667 | K89: =IF(M89>0,'A remplir'!B$99/'A remplir'!F$99,0) -> 2666.666667 | L89: =M88*'A remplir'!J$99 -> 1480 | M89: =IF(M88>0.001,M88-('A remplir'!B$99/'A remplir'!F$99),0) -> 96000
A90: 10 | B90: 2028-01-01 | C90: 3686.371253 | D90: 2156.857981 | E90: =F89*'A remplir'!J$99 -> 1529.513272 | F90: 99810.69351 | H90: 10 | I90: 2028-01-01 | J90: 4106.666667 | K90: =IF(M90>0,'A remplir'!B$99/'A remplir'!F$99,0) -> 2666.666667 | L90: =M89*'A remplir'!J$99 -> 1440 | M90: =IF(M89>0.001,M89-('A remplir'!B$99/'A remplir'!F$99),0) -> 93333.33333
A91: 11 | B91: 2029-01-01 | C91: 3686.371253 | D91: 2189.210851 | E91: =F90*'A remplir'!J$99 -> 1497.160403 | F91: 97621.48266 | H91: 11 | I91: 2029-01-01 | J91: 4066.666667 | K91: =IF(M91>0,'A remplir'!B$99/'A remplir'!F$99,0) -> 2666.666667 | L91: =M90*'A remplir'!J$99 -> 1400 | M91: =IF(M90>0.001,M90-('A remplir'!B$99/'A remplir'!F$99),0) -> 90666.66667
A92: 12 | B92: 2030-01-01 | C92: 3686.371253 | D92: 2222.049013 | E92: =F91*'A remplir'!J$99 -> 1464.32224 | F92: 95399.43365 | H92: 12 | I92: 2030-01-01 | J92: 4026.666667 | K92: =IF(M92>0,'A remplir'!B$99/'A remplir'!F$99,0) -> 2666.666667 | L92: =M91*'A remplir'!J$99 -> 1360 | M92: =IF(M91>0.001,M91-('A remplir'!B$99/'A remplir'!F$99),0) -> 88000
A93: 13 | B93: 2031-01-01 | C93: 3686.371253 | D93: 2255.379749 | E93: =F92*'A remplir'!J$99 -> 1430.991505 | F93: 93144.0539 | H93: 13 | I93: 2031-01-01 | J93: 3986.666667 | K93: =IF(M93>0,'A remplir'!B$99/'A remplir'!F$99,0) -> 2666.666667 | L93: =M92*'A remplir'!J$99 -> 1320 | M93: =IF(M92>0.001,M92-('A remplir'!B$99/'A remplir'!F$99),0) -> 85333.33333
A94: 14 | B94: 2032-01-01 | C94: 3686.371253 | D94: 2289.210445 | E94: =F93*'A remplir'!J$99 -> 1397.160808 | F94: 90854.84345 | H94: 14 | I94: 2032-01-01 | J94: 3946.666667 | K94: =IF(M94>0,'A remplir'!B$99/'A remplir'!F$99,0) -> 2666.666667 | L94: =M93*'A remplir'!J$99 -> 1280 | M94: =IF(M93>0.001,M93-('A remplir'!B$99/'A remplir'!F$99),0) -> 82666.66667
A95: 15 | B95: 2033-01-01 | C95: 3686.371253 | D95: 2323.548602 | E95: =F94*'A remplir'!J$99 -> 1362.822652 | F95: 88531.29485 | H95: 15 | I95: 2033-01-01 | J95: 3906.666667 | K95: =IF(M95>0,'A remplir'!B$99/'A remplir'!F$99,0) -> 2666.666667 | L95: =M94*'A remplir'!J$99 -> 1240 | M95: =IF(M94>0.001,M94-('A remplir'!B$99/'A remplir'!F$99),0) -> 80000
A96: 16 | B96: 2034-01-01 | C96: 3686.371253 | D96: 2358.401831 | E96: =F95*'A remplir'!J$99 -> 1327.969423 | F96: 86172.89302 | H96: 16 | I96: 2034-01-01 | J96: 3866.666667 | K96: =IF(M96>0,'A remplir'!B$99/'A remplir'!F$99,0) -> 2666.666667 | L96: =M95*'A remplir'!J$99 -> 1200 | M96: =IF(M95>0.001,M95-('A remplir'!B$99/'A remplir'!F$99),0) -> 77333.33333
A97: 17 | B97: 2035-01-01 | C97: 3686.371253 | D97: 2393.777858 | E97: =F96*'A remplir'!J$99 -> 1292.593395 | F97: 83779.11516 | H97: 17 | I97: 2035-01-01 | J97: 3826.666667 | K97: =IF(M97>0,'A remplir'!B$99/'A remplir'!F$99,0) -> 2666.666667 | L97: =M96*'A remplir'!J$99 -> 1160 | M97: =IF(M96>0.001,M96-('A remplir'!B$99/'A remplir'!F$99),0) -> 74666.66667
A98: 18 | B98: 2036-01-01 | C98: 3686.371253 | D98: 2429.684526 | E98: =F97*'A remplir'!J$99 -> 1256.686727 | F98: 81349.43064 | H98: 18 | I98: 2036-01-01 | J98: 3786.666667 | K98: =IF(M98>0,'A remplir'!B$99/'A remplir'!F$99,0) -> 2666.666667 | L98: =M97*'A remplir'!J$99 -> 1120 | M98: =IF(M97>0.001,M97-('A remplir'!B$99/'A remplir'!F$99),0) -> 72000
A99: 19 | B99: 2037-01-01 | C99: 3686.371253 | D99: 2466.129794 | E99: =F98*'A remplir'!J$99 -> 1220.24146 | F99: 78883.30084 | H99: 19 | I99: 2037-01-01 | J99: 3746.666667 | K99: =IF(M99>0,'A remplir'!B$99/'A remplir'!F$99,0) -> 2666.666667 | L99: =M98*'A remplir'!J$99 -> 1080 | M99: =IF(M98>0.001,M98-('A remplir'!B$99/'A remplir'!F$99),0) -> 69333.33333
A100: 20 | B100: 2038-01-01 | C100: 3686.371253 | D100: 2503.121741 | E100: =F99*'A remplir'!J$99 -> 1183.249513 | F100: 76380.1791 | H100: 20 | I100: 2038-01-01 | J100: 3706.666667 | K100: =IF(M100>0,'A remplir'!B$99/'A remplir'!F$99,0) -> 2666.666667 | L100: =M99*'A remplir'!J$99 -> 1040 | M100: =IF(M99>0.001,M99-('A remplir'!B$99/'A remplir'!F$99),0) -> 66666.66667
A101: 21 | B101: 2039-01-01 | C101: 3686.371253 | D101: 2540.668567 | E101: =F100*'A remplir'!J$99 -> 1145.702687 | F101: 73839.51054 | H101: 21 | I101: 2039-01-01 | J101: 3666.666667 | K101: =IF(M101>0,'A remplir'!B$99/'A remplir'!F$99,0) -> 2666.666667 | L101: =M100*'A remplir'!J$99 -> 1000 | M101: =IF(M100>0.001,M100-('A remplir'!B$99/'A remplir'!F$99),0) -> 64000
A102: 22 | B102: 2040-01-01 | C102: 3686.371253 | D102: 2578.778595 | E102: =F101*'A remplir'!J$99 -> 1107.592658 | F102: 71260.73194 | H102: 22 | I102: 2040-01-01 | J102: 3626.666667 | K102: =IF(M102>0,'A remplir'!B$99/'A remplir'!F$99,0) -> 2666.666667 | L102: =M101*'A remplir'!J$99 -> 960 | M102: =IF(M101>0.001,M101-('A remplir'!B$99/'A remplir'!F$99),0) -> 61333.33333
A103: 23 | B103: 2041-01-01 | C103: 3686.371253 | D103: 2617.460274 | E103: =F102*'A remplir'!J$99 -> 1068.910979 | F103: 68643.27167 | H103: 23 | I103: 2041-01-01 | J103: 3586.666667 | K103: =IF(M103>0,'A remplir'!B$99/'A remplir'!F$99,0) -> 2666.666667 | L103: =M102*'A remplir'!J$99 -> 920 | M103: =IF(M102>0.001,M102-('A remplir'!B$99/'A remplir'!F$99),0) -> 58666.66667
A104: 24 | B104: 2042-01-01 | C104: 3686.371253 | D104: 2656.722178 | E104: =F103*'A remplir'!J$99 -> 1029.649075 | F104: 65986.54949 | H104: 24 | I104: 2042-01-01 | J104: 3546.666667 | K104: =IF(M104>0,'A remplir'!B$99/'A remplir'!F$99,0) -> 2666.666667 | L104: =M103*'A remplir'!J$99 -> 880 | M104: =IF(M103>0.001,M103-('A remplir'!B$99/'A remplir'!F$99),0) -> 56000
A105: 25 | B105: 2043-01-01 | C105: 3686.371253 | D105: 2696.573011 | E105: =F104*'A remplir'!J$99 -> 989.7982423 | F105: 63289.97648 | H105: 25 | I105: 2043-01-01 | J105: 3506.666667 | K105: =IF(M105>0,'A remplir'!B$99/'A remplir'!F$99,0) -> 2666.666667 | L105: =M104*'A remplir'!J$99 -> 840 | M105: =IF(M104>0.001,M104-('A remplir'!B$99/'A remplir'!F$99),0) -> 53333.33333
A106: 26 | B106: 2044-01-01 | C106: 3686.371253 | D106: 2737.021606 | E106: =F105*'A remplir'!J$99 -> 949.3496472 | F106: 60552.95487 | H106: 26 | I106: 2044-01-01 | J106: 3466.666667 | K106: =IF(M106>0,'A remplir'!B$99/'A remplir'!F$99,0) -> 2666.666667 | L106: =M105*'A remplir'!J$99 -> 800 | M106: =IF(M105>0.001,M105-('A remplir'!B$99/'A remplir'!F$99),0) -> 50666.66667
A107: 27 | B107: 2045-01-01 | C107: 3686.371253 | D107: 2778.07693 | E107: =F106*'A remplir'!J$99 -> 908.2943231 | F107: 57774.87794 | H107: 27 | I107: 2045-01-01 | J107: 3426.666667 | K107: =IF(M107>0,'A remplir'!B$99/'A remplir'!F$99,0) -> 2666.666667 | L107: =M106*'A remplir'!J$99 -> 760 | M107: =IF(M106>0.001,M106-('A remplir'!B$99/'A remplir'!F$99),0) -> 48000
A108: 28 | B108: 2046-01-01 | C108: 3686.371253 | D108: 2819.748084 | E108: =F107*'A remplir'!J$99 -> 866.6231691 | F108: 54955.12986 | H108: 28 | I108: 2046-01-01 | J108: 3386.666667 | K108: =IF(M108>0,'A remplir'!B$99/'A remplir'!F$99,0) -> 2666.666667 | L108: =M107*'A remplir'!J$99 -> 720 | M108: =IF(M107>0.001,M107-('A remplir'!B$99/'A remplir'!F$99),0) -> 45333.33333
A109: 29 | B109: 2047-01-01 | C109: 3686.371253 | D109: 2862.044306 | E109: =F108*'A remplir'!J$99 -> 824.3269478 | F109: 52093.08555 | H109: 29 | I109: 2047-01-01 | J109: 3346.666667 | K109: =IF(M109>0,'A remplir'!B$99/'A remplir'!F$99,0) -> 2666.666667 | L109: =M108*'A remplir'!J$99 -> 680 | M109: =IF(M108>0.001,M108-('A remplir'!B$99/'A remplir'!F$99),0) -> 42666.66667
A110: 30 | B110: 2048-01-01 | C110: 3686.371253 | D110: 2904.97497 | E110: =F109*'A remplir'!J$99 -> 781.3962833 | F110: 49188.11058 | H110: 30 | I110: 2048-01-01 | J110: 3306.666667 | K110: =IF(M110>0,'A remplir'!B$99/'A remplir'!F$99,0) -> 2666.666667 | L110: =M109*'A remplir'!J$99 -> 640 | M110: =IF(M109>0.001,M109-('A remplir'!B$99/'A remplir'!F$99),0) -> 40000
A111: 31 | B111: 2049-01-01 | C111: 3686.371253 | D111: =C111-E111 -> 2948.549595 | E111: =F110*'A remplir'!J$99 -> 737.8216587 | F111: 46239.56099 | H111: 31 | I111: 2049-01-01 | J111: 3266.666667 | K111: =IF(M111>0,'A remplir'!B$99/'A remplir'!F$99,0) -> 2666.666667 | L111: =M110*'A remplir'!J$99 -> 600 | M111: =IF(M110>0.001,M110-('A remplir'!B$99/'A remplir'!F$99),0) -> 37333.33333
A112: 32 | B112: 2050-01-01 | C112: 3686.371253 | D112: 2992.777839 | E112: =F111*'A remplir'!J$99 -> 693.5934148 | F112: 43246.78315 | H112: 32 | I112: 2050-01-01 | J112: 3226.666667 | K112: =IF(M112>0,'A remplir'!B$99/'A remplir'!F$99,0) -> 2666.666667 | L112: =M111*'A remplir'!J$99 -> 560 | M112: =IF(M111>0.001,M111-('A remplir'!B$99/'A remplir'!F$99),0) -> 34666.66667
A113: 33 | B113: 2051-01-01 | C113: 3686.371253 | D113: 3037.669506 | E113: =F112*'A remplir'!J$99 -> 648.7017472 | F113: 40209.11364 | H113: 33 | I113: 2051-01-01 | J113: 3186.666667 | K113: =IF(M113>0,'A remplir'!B$99/'A remplir'!F$99,0) -> 2666.666667 | L113: =M112*'A remplir'!J$99 -> 520 | M113: =IF(M112>0.001,M112-('A remplir'!B$99/'A remplir'!F$99),0) -> 32000
A114: 34 | B114: 2052-01-01 | C114: 3686.371253 | D114: 3083.234549 | E114: =F113*'A remplir'!J$99 -> 603.1367046 | F114: 37125.87909 | H114: 34 | I114: 2052-01-01 | J114: 3146.666667 | K114: =IF(M114>0,'A remplir'!B$99/'A remplir'!F$99,0) -> 2666.666667 | L114: =M113*'A remplir'!J$99 -> 480 | M114: =IF(M113>0.001,M113-('A remplir'!B$99/'A remplir'!F$99),0) -> 29333.33333
A115: 35 | B115: 2053-01-01 | C115: 3686.371253 | D115: 3129.483067 | E115: =F114*'A remplir'!J$99 -> 556.8881864 | F115: 33996.39603 | H115: 35 | I115: 2053-01-01 | J115: 3106.666667 | K115: =IF(M115>0,'A remplir'!B$99/'A remplir'!F$99,0) -> 2666.666667 | L115: =M114*'A remplir'!J$99 -> 440 | M115: =IF(M114>0.001,M114-('A remplir'!B$99/'A remplir'!F$99),0) -> 26666.66667
A116: 36 | B116: 2054-01-01 | C116: 3686.371253 | D116: 3176.425313 | E116: =F115*'A remplir'!J$99 -> 509.9459404 | F116: 30819.97071 | H116: 36 | I116: 2054-01-01 | J116: 3066.666667 | K116: =IF(M116>0,'A remplir'!B$99/'A remplir'!F$99,0) -> 2666.666667 | L116: =M115*'A remplir'!J$99 -> 400 | M116: =IF(M115>0.001,M115-('A remplir'!B$99/'A remplir'!F$99),0) -> 24000
A117: 37 | B117: 2055-01-01 | C117: 3686.371253 | D117: 3224.071693 | E117: =F116*'A remplir'!J$99 -> 462.2995607 | F117: 27595.89902 | H117: 37 | I117: 2055-01-01 | J117: 3026.666667 | K117: =IF(M117>0,'A remplir'!B$99/'A remplir'!F$99,0) -> 2666.666667 | L117: =M116*'A remplir'!J$99 -> 360 | M117: =IF(M116>0.001,M116-('A remplir'!B$99/'A remplir'!F$99),0) -> 21333.33333
A118: 38 | B118: 2056-01-01 | C118: 3686.371253 | D118: 3272.432768 | E118: =F117*'A remplir'!J$99 -> 413.9384853 | F118: 24323.46625 | H118: 38 | I118: 2056-01-01 | J118: 2986.666667 | K118: =IF(M118>0,'A remplir'!B$99/'A remplir'!F$99,0) -> 2666.666667 | L118: =M117*'A remplir'!J$99 -> 320 | M118: =IF(M117>0.001,M117-('A remplir'!B$99/'A remplir'!F$99),0) -> 18666.66667
A119: 39 | B119: 2057-01-01 | C119: 3686.371253 | D119: 3321.51926 | E119: =F118*'A remplir'!J$99 -> 364.8519938 | F119: 21001.94699 | H119: 39 | I119: 2057-01-01 | J119: 2946.666667 | K119: =IF(M119>0,'A remplir'!B$99/'A remplir'!F$99,0) -> 2666.666667 | L119: =M118*'A remplir'!J$99 -> 280 | M119: =IF(M118>0.001,M118-('A remplir'!B$99/'A remplir'!F$99),0) -> 16000
A120: 40 | B120: 2058-01-01 | C120: 3686.371253 | D120: 3371.342049 | E120: =F119*'A remplir'!J$99 -> 315.0292049 | F120: 17630.60494 | H120: 40 | I120: 2058-01-01 | J120: 2906.666667 | K120: =IF(M120>0,'A remplir'!B$99/'A remplir'!F$99,0) -> 2666.666667 | L120: =M119*'A remplir'!J$99 -> 240 | M120: =IF(M119>0.001,M119-('A remplir'!B$99/'A remplir'!F$99),0) -> 13333.33333
A121: 41 | B121: 2059-01-01 | C121: 3686.371253 | D121: 3421.912179 | E121: =F120*'A remplir'!J$99 -> 264.4590742 | F121: 14208.69276 | H121: 41 | I121: 2059-01-01 | J121: 2866.666667 | K121: =IF(M121>0,'A remplir'!B$99/'A remplir'!F$99,0) -> 2666.666667 | L121: =M120*'A remplir'!J$99 -> 200 | M121: =IF(M120>0.001,M120-('A remplir'!B$99/'A remplir'!F$99),0) -> 10666.66667
A122: 42 | B122: 2060-01-01 | C122: 3686.371253 | D122: 3473.240862 | E122: =F121*'A remplir'!J$99 -> 213.1303915 | F122: 10735.4519 | H122: 42 | I122: 2060-01-01 | J122: 2826.666667 | K122: =IF(M122>0,'A remplir'!B$99/'A remplir'!F$99,0) -> 2666.666667 | L122: =M121*'A remplir'!J$99 -> 160 | M122: =IF(M121>0.001,M121-('A remplir'!B$99/'A remplir'!F$99),0) -> 8000
A123: 43 | B123: 2061-01-01 | C123: 3686.371253 | D123: 3525.339475 | E123: =F122*'A remplir'!J$99 -> 161.0317785 | F123: 7210.112427 | H123: 43 | I123: 2061-01-01 | J123: 2786.666667 | K123: =IF(M123>0,'A remplir'!B$99/'A remplir'!F$99,0) -> 2666.666667 | L123: =M122*'A remplir'!J$99 -> 120 | M123: =IF(M122>0.001,M122-('A remplir'!B$99/'A remplir'!F$99),0) -> 5333.333333
A124: 44 | B124: 2062-01-01 | C124: 3686.371253 | D124: 3578.219567 | E124: =F123*'A remplir'!J$99 -> 108.1516864 | F124: 3631.89286 | H124: 44 | I124: 2062-01-01 | J124: 2746.666667 | K124: =IF(M124>0,'A remplir'!B$99/'A remplir'!F$99,0) -> 2666.666667 | L124: =M123*'A remplir'!J$99 -> 80 | M124: =IF(M123>0.001,M123-('A remplir'!B$99/'A remplir'!F$99),0) -> 2666.666667
A125: 45 | B125: 2063-01-01 | C125: 3686.371253 | D125: 3631.89286 | E125: =F124*'A remplir'!J$99 -> 54.47839291 | F125: -1.479293132e-09 | H125: 45 | I125: 2063-01-01 | J125: 0 | K125: =IF(M125>0,'A remplir'!B$99/'A remplir'!F$99,0) -> 0 | L125: =M124*'A remplir'!J$99 -> 40 | M125: =IF(M124>0.001,M124-('A remplir'!B$99/'A remplir'!F$99),0) -> -7.185008144e-11
A126: 46 | B126: 2064-01-01 | C126: 0 | D126: 2.218939699e-11 | E126: =F125*'A remplir'!J$99 -> -2.218939699e-11 | F126: 0 | H126: 46 | I126: 2064-01-01 | J126: 0 | K126: =IF(M126>0,'A remplir'!B$99/'A remplir'!F$99,0) -> 0 | L126: =M125*'A remplir'!J$99 -> -1.077751222e-12 | M126: =IF(M125>0.001,M125-('A remplir'!B$99/'A remplir'!F$99),0) -> 0
A127: 47 | B127: 2065-01-01 | C127: 0 | D127: 0 | E127: =F126*'A remplir'!J$99 -> 0 | F127: 0 | H127: 47 | I127: 2065-01-01 | J127: 0 | K127: =IF(M127>0,'A remplir'!B$99/'A remplir'!F$99,0) -> 0 | L127: =M126*'A remplir'!J$99 -> 0 | M127: =IF(M126>0.001,M126-('A remplir'!B$99/'A remplir'!F$99),0) -> 0
A128: 48 | B128: 2066-01-01 | C128: 0 | D128: 0 | E128: =F127*'A remplir'!J$99 -> 0 | F128: 0 | H128: 48 | I128: 2066-01-01 | J128: 0 | K128: =IF(M128>0,'A remplir'!B$99/'A remplir'!F$99,0) -> 0 | L128: =M127*'A remplir'!J$99 -> 0 | M128: =IF(M127>0.001,M127-('A remplir'!B$99/'A remplir'!F$99),0) -> 0
A129: 49 | B129: 2067-01-01 | C129: 0 | D129: 0 | E129: =F128*'A remplir'!J$99 -> 0 | F129: 0 | H129: 49 | I129: 2067-01-01 | J129: 0 | K129: =IF(M129>0,'A remplir'!B$99/'A remplir'!F$99,0) -> 0 | L129: =M128*'A remplir'!J$99 -> 0 | M129: =IF(M128>0.001,M128-('A remplir'!B$99/'A remplir'!F$99),0) -> 0
A130: 50 | B130: 2068-01-01 | C130: 0 | D130: 0 | E130: =F129*'A remplir'!J$99 -> 0 | F130: 0 | H130: 50 | I130: 2068-01-01 | J130: 0 | K130: =IF(M130>0,'A remplir'!B$99/'A remplir'!F$99,0) -> 0 | L130: =M129*'A remplir'!J$99 -> 0 | M130: =IF(M129>0.001,M129-('A remplir'!B$99/'A remplir'!F$99),0) -> 0
A131: 51 | B131: 2069-01-01 | C131: 0 | D131: 0 | E131: =F130*'A remplir'!J$99 -> 0 | F131: 0 | H131: 51 | I131: 2069-01-01 | J131: =IF(M131>0,K131+L131,0) -> 0 | K131: =IF(M131>0,'A remplir'!B$99/'A remplir'!F$99,0) -> 0 | L131: =M130*'A remplir'!J$99 -> 0 | M131: =IF(M130>0.001,M130-('A remplir'!B$99/'A remplir'!F$99),0) -> 0
A132: 52 | B132: 2070-01-01 | C132: 0 | D132: 0 | E132: =F131*'A remplir'!J$99 -> 0 | F132: 0 | H132: 52 | I132: 2070-01-01 | J132: 0 | K132: =IF(M132>0,'A remplir'!B$99/'A remplir'!F$99,0) -> 0 | L132: =M131*'A remplir'!J$99 -> 0 | M132: =IF(M131>0.001,M131-('A remplir'!B$99/'A remplir'!F$99),0) -> 0
A133: 53 | B133: 2071-01-01 | C133: 0 | D133: 0 | E133: =F132*'A remplir'!J$99 -> 0 | F133: 0 | H133: 53 | I133: 2071-01-01 | J133: 0 | K133: =IF(M133>0,'A remplir'!B$99/'A remplir'!F$99,0) -> 0 | L133: =M132*'A remplir'!J$99 -> 0 | M133: =IF(M132>0.001,M132-('A remplir'!B$99/'A remplir'!F$99),0) -> 0
A134: 54 | B134: 2072-01-01 | C134: 0 | D134: 0 | E134: =F133*'A remplir'!J$99 -> 0 | F134: 0 | H134: 54 | I134: 2072-01-01 | J134: 0 | K134: =IF(M134>0,'A remplir'!B$99/'A remplir'!F$99,0) -> 0 | L134: =M133*'A remplir'!J$99 -> 0 | M134: =IF(M133>0.001,M133-('A remplir'!B$99/'A remplir'!F$99),0) -> 0
A135: 55 | B135: 2073-01-01 | C135: 0 | D135: 0 | E135: =F134*'A remplir'!J$99 -> 0 | F135: 0 | H135: 55 | I135: 2073-01-01 | J135: 0 | K135: =IF(M135>0,'A remplir'!B$99/'A remplir'!F$99,0) -> 0 | L135: =M134*'A remplir'!J$99 -> 0 | M135: =IF(M134>0.001,M134-('A remplir'!B$99/'A remplir'!F$99),0) -> 0
A136: 56 | B136: 2074-01-01 | C136: 0 | D136: 0 | E136: =F135*'A remplir'!J$99 -> 0 | F136: 0 | H136: 56 | I136: 2074-01-01 | J136: 0 | K136: =IF(M136>0,'A remplir'!B$99/'A remplir'!F$99,0) -> 0 | L136: =M135*'A remplir'!J$99 -> 0 | M136: =IF(M135>0.001,M135-('A remplir'!B$99/'A remplir'!F$99),0) -> 0
A137: 57 | B137: 2075-01-01 | C137: 0 | D137: 0 | E137: =F136*'A remplir'!J$99 -> 0 | F137: 0 | H137: 57 | I137: 2075-01-01 | J137: 0 | K137: =IF(M137>0,'A remplir'!B$99/'A remplir'!F$99,0) -> 0 | L137: =M136*'A remplir'!J$99 -> 0 | M137: =IF(M136>0.001,M136-('A remplir'!B$99/'A remplir'!F$99),0) -> 0
A138: 58 | B138: 2076-01-01 | C138: 0 | D138: 0 | E138: =F137*'A remplir'!J$99 -> 0 | F138: 0 | H138: 58 | I138: 2076-01-01 | J138: 0 | K138: =IF(M138>0,'A remplir'!B$99/'A remplir'!F$99,0) -> 0 | L138: =M137*'A remplir'!J$99 -> 0 | M138: =IF(M137>0.001,M137-('A remplir'!B$99/'A remplir'!F$99),0) -> 0
A139: 59 | B139: 2077-01-01 | C139: 0 | D139: 0 | E139: =F138*'A remplir'!J$99 -> 0 | F139: 0 | H139: 59 | I139: 2077-01-01 | J139: 0 | K139: =IF(M139>0,'A remplir'!B$99/'A remplir'!F$99,0) -> 0 | L139: =M138*'A remplir'!J$99 -> 0 | M139: =IF(M138>0.001,M138-('A remplir'!B$99/'A remplir'!F$99),0) -> 0
A140: 60 | B140: 2078-01-01 | C140: 0 | D140: 0 | E140: =F139*'A remplir'!J$99 -> 0 | F140: 0 | H140: 60 | I140: 2078-01-01 | J140: 0 | K140: =IF(M140>0,'A remplir'!B$99/'A remplir'!F$99,0) -> 0 | L140: =M139*'A remplir'!J$99 -> 0 | M140: =IF(M139>0.001,M139-('A remplir'!B$99/'A remplir'!F$99),0) -> 0
B142: Coût total du prêt: | C142: =SUM(C81:C140) -> 165886.7064 | I142: Coût total du prêt: | J142: =SUM(J81:J140) -> 158693.3333
B148: Plan d'amortissement total pour le projet eau (prêt CDC + autre prêt + avance remboursable AEAG)
A150: Amortissement linéaire (prêts BEI): | H150: Amortissement prioritaire (AQUAPRET, PCV, PSPL): (Attention, ces prêts seront à taux variable)
A151: Échéance | B151: Date | C151: annuité | D151: dont capital | E151: dont intérêts | F151: capital restant dû | H151: Échéance | I151: Date | J151: annuité | K151: dont capital | L151: dont intérêts | M151: capital restant dû
A152: 1 | B152: ='A remplir'!$B$21 -> 2019-01-01 | C152: =C81+'Ne pas toucher'!F6 -> 3686.371253 | D152: =D81+'Ne pas toucher'!G6 -> 1886.371253 | E152: =E81+'Ne pas toucher'!H6 -> 1800 | F152: =F81+'Ne pas toucher'!I6 -> 118113.6287 | H152: 1 | I152: ='A remplir'!$B$21 -> 2019-01-01 | J152: =J81+'Ne pas toucher'!F6 -> 4466.666667 | K152: =K81+'Ne pas toucher'!G6 -> 2666.666667 | L152: =L81+'Ne pas toucher'!H6 -> 1800 | M152: =M81+'Ne pas toucher'!I6 -> 117333.3333
A153: 2 | B153: =DATE(YEAR(B152)+1,MONTH(B152),DAY(B152)) -> 2020-01-01 | C153: =C82+'Ne pas toucher'!F7 -> 3686.371253 | D153: =D82+'Ne pas toucher'!G7 -> 1914.666822 | E153: =E82+'Ne pas toucher'!H7 -> 1771.704431 | F153: =F82+'Ne pas toucher'!I7 -> 116198.9619 | H153: 2 | I153: =DATE(YEAR(I152)+1,MONTH(I152),DAY(I152)) -> 2020-01-01 | J153: =J82+'Ne pas toucher'!F7 -> 4426.666667 | K153: =K82+'Ne pas toucher'!G7 -> 2666.666667 | L153: =L82+'Ne pas toucher'!H7 -> 1760 | M153: =IF(M152>0.001,M82+'Ne pas toucher'!I7,0) -> 114666.6667
A154: 3 | B154: =DATE(YEAR(B153)+1,MONTH(B153),DAY(B153)) -> 2021-01-01 | C154: =C83+'Ne pas toucher'!F8 -> 3686.371253 | D154: =D83+'Ne pas toucher'!G8 -> 1943.386825 | E154: =E83+'Ne pas toucher'!H8 -> 1742.984429 | F154: =F83+'Ne pas toucher'!I8 -> 114255.5751 | H154: 3 | I154: =DATE(YEAR(I153)+1,MONTH(I153),DAY(I153)) -> 2021-01-01 | J154: =J83+'Ne pas toucher'!F8 -> 4386.666667 | K154: =K83+'Ne pas toucher'!G8 -> 2666.666667 | L154: =L83+'Ne pas toucher'!H8 -> 1720 | M154: =IF(M153>0.001,M83+'Ne pas toucher'!I8,0) -> 112000
A155: 4 | B155: 2022-01-01 | C155: =C84+'Ne pas toucher'!F9+'A remplir'!J$92 -> 3686.371253 | D155: =D84+'Ne pas toucher'!G9 -> 1972.537627 | E155: =E84+'Ne pas toucher'!H9 -> 1713.833626 | F155: =F84+'Ne pas toucher'!I9 -> 112283.0375 | H155: 4 | I155: 2022-01-01 | J155: =J84+'Ne pas toucher'!F9+'A remplir'!J$92 -> 4346.666667 | K155: =K84+'Ne pas toucher'!G9 -> 2666.666667 | L155: =L84+'Ne pas toucher'!H9 -> 1680 | M155: =IF(M154>0.001,M84+'Ne pas toucher'!I9,0) -> 109333.3333
A156: 5 | B156: =DATE(YEAR(B155)+1,MONTH(B155),DAY(B155)) -> 2023-01-01 | C156: =C85+'Ne pas toucher'!F10+'A remplir'!J$92 -> 3686.371253 | D156: =D85+'Ne pas toucher'!G10 -> 2002.125691 | E156: =E85+'Ne pas toucher'!H10 -> 1684.245562 | F156: =F85+'Ne pas toucher'!I10 -> 110280.9118 | H156: 5 | I156: 2023-01-01 | J156: =J85+'Ne pas toucher'!F10+'A remplir'!J$92 -> 4306.666667 | K156: =K85+'Ne pas toucher'!G10 -> 2666.666667 | L156: =L85+'Ne pas toucher'!H10 -> 1640 | M156: =IF(M155>0.001,M85+'Ne pas toucher'!I10,0) -> 106666.6667
A157: 6 | B157: 2024-01-01 | C157: =C86+'Ne pas toucher'!F11+'A remplir'!J$92 -> 3686.371253 | D157: =D86+'Ne pas toucher'!G11 -> 2032.157577 | E157: =E86+'Ne pas toucher'!H11 -> 1654.213677 | F157: =F86+'Ne pas toucher'!I11 -> 108248.7542 | H157: 6 | I157: 2024-01-01 | J157: =J86+'Ne pas toucher'!F11+'A remplir'!J$92 -> 4266.666667 | K157: =K86+'Ne pas toucher'!G11 -> 2666.666667 | L157: =L86+'Ne pas toucher'!H11 -> 1600 | M157: =IF(M156>0.001,M86+'Ne pas toucher'!I11,0) -> 104000
A158: 7 | B158: 2025-01-01 | C158: =C87+'Ne pas toucher'!F12+'A remplir'!J$92 -> 3686.371253 | D158: =D87+'Ne pas toucher'!G12 -> 2062.63994 | E158: =E87+'Ne pas toucher'!H12 -> 1623.731313 | F158: =F87+'Ne pas toucher'!I12 -> 106186.1143 | H158: 7 | I158: 2025-01-01 | J158: =J87+'Ne pas toucher'!F12+'A remplir'!J$92 -> 4226.666667 | K158: =K87+'Ne pas toucher'!G12 -> 2666.666667 | L158: =L87+'Ne pas toucher'!H12 -> 1560 | M158: =IF(M157>0.001,M87+'Ne pas toucher'!I12,0) -> 101333.3333
A159: 8 | B159: 2026-01-01 | C159: =C88+'Ne pas toucher'!F13+'A remplir'!J$92 -> 3686.371253 | D159: =D88+'Ne pas toucher'!G13 -> 2093.579539 | E159: =E88+'Ne pas toucher'!H13 -> 1592.791714 | F159: =F88+'Ne pas toucher'!I13 -> 104092.5347 | H159: 8 | I159: 2026-01-01 | J159: =J88+'Ne pas toucher'!F13+'A remplir'!J$92 -> 4186.666667 | K159: =K88+'Ne pas toucher'!G13 -> 2666.666667 | L159: =L88+'Ne pas toucher'!H13 -> 1520 | M159: =IF(M158>0.001,M88+'Ne pas toucher'!I13,0) -> 98666.66667
A160: 9 | B160: 2027-01-01 | C160: =C89+'Ne pas toucher'!F14+'A remplir'!J$92 -> 3686.371253 | D160: =D89+'Ne pas toucher'!G14 -> 2124.983233 | E160: =E89+'Ne pas toucher'!H14 -> 1561.388021 | F160: =F89+'Ne pas toucher'!I14 -> 101967.5515 | H160: 9 | I160: 2027-01-01 | J160: =J89+'Ne pas toucher'!F14+'A remplir'!J$92 -> 4146.666667 | K160: =K89+'Ne pas toucher'!G14 -> 2666.666667 | L160: =L89+'Ne pas toucher'!H14 -> 1480 | M160: =IF(M159>0.001,M89+'Ne pas toucher'!I14,0) -> 96000
A161: 10 | B161: 2028-01-01 | C161: =C90+'Ne pas toucher'!F15+'A remplir'!J$92 -> 3686.371253 | D161: =D90+'Ne pas toucher'!G15 -> 2156.857981 | E161: =E90+'Ne pas toucher'!H15 -> 1529.513272 | F161: =F90+'Ne pas toucher'!I15 -> 99810.69351 | H161: 10 | I161: 2028-01-01 | J161: =J90+'Ne pas toucher'!F15+'A remplir'!J$92 -> 4106.666667 | K161: =K90+'Ne pas toucher'!G15 -> 2666.666667 | L161: =L90+'Ne pas toucher'!H15 -> 1440 | M161: =IF(M160>0.001,M90+'Ne pas toucher'!I15,0) -> 93333.33333
A162: 11 | B162: 2029-01-01 | C162: =C91+'Ne pas toucher'!F16+'A remplir'!J$92 -> 3686.371253 | D162: =D91+'Ne pas toucher'!G16 -> 2189.210851 | E162: =E91+'Ne pas toucher'!H16 -> 1497.160403 | F162: =F91+'Ne pas toucher'!I16 -> 97621.48266 | H162: 11 | I162: 2029-01-01 | J162: =J91+'Ne pas toucher'!F16+'A remplir'!J$92 -> 4066.666667 | K162: =K91+'Ne pas toucher'!G16 -> 2666.666667 | L162: =L91+'Ne pas toucher'!H16 -> 1400 | M162: =IF(M161>0.001,M91+'Ne pas toucher'!I16,0) -> 90666.66667
A163: 12 | B163: 2030-01-01 | C163: =C92+'Ne pas toucher'!F17+'A remplir'!J$92 -> 3686.371253 | D163: =D92+'Ne pas toucher'!G17 -> 2222.049013 | E163: =E92+'Ne pas toucher'!H17 -> 1464.32224 | F163: =F92+'Ne pas toucher'!I17 -> 95399.43365 | H163: 12 | I163: 2030-01-01 | J163: =J92+'Ne pas toucher'!F17+'A remplir'!J$92 -> 4026.666667 | K163: =K92+'Ne pas toucher'!G17 -> 2666.666667 | L163: =L92+'Ne pas toucher'!H17 -> 1360 | M163: =IF(M162>0.001,M92+'Ne pas toucher'!I17,0) -> 88000
A164: 13 | B164: 2031-01-01 | C164: =C93+'Ne pas toucher'!F18+'A remplir'!J$92 -> 3686.371253 | D164: =D93+'Ne pas toucher'!G18 -> 2255.379749 | E164: =E93+'Ne pas toucher'!H18 -> 1430.991505 | F164: =F93+'Ne pas toucher'!I18 -> 93144.0539 | H164: 13 | I164: 2031-01-01 | J164: =J93+'Ne pas toucher'!F18+'A remplir'!J$92 -> 3986.666667 | K164: =K93+'Ne pas toucher'!G18 -> 2666.666667 | L164: =L93+'Ne pas toucher'!H18 -> 1320 | M164: =IF(M163>0.001,M93+'Ne pas toucher'!I18,0) -> 85333.33333
A165: 14 | B165: 2032-01-01 | C165: =C94+'Ne pas toucher'!F19+'A remplir'!J$92 -> 3686.371253 | D165: =D94+'Ne pas toucher'!G19 -> 2289.210445 | E165: =E94+'Ne pas toucher'!H19 -> 1397.160808 | F165: =F94+'Ne pas toucher'!I19 -> 90854.84345 | H165: 14 | I165: 2032-01-01 | J165: =J94+'Ne pas toucher'!F19+'A remplir'!J$92 -> 3946.666667 | K165: =K94+'Ne pas toucher'!G19 -> 2666.666667 | L165: =L94+'Ne pas toucher'!H19 -> 1280 | M165: =IF(M164>0.001,M94+'Ne pas toucher'!I19,0) -> 82666.66667
A166: 15 | B166: 2033-01-01 | C166: =C95+'Ne pas toucher'!F20+'A remplir'!J$92 -> 3686.371253 | D166: =D95+'Ne pas toucher'!G20 -> 2323.548602 | E166: =E95+'Ne pas toucher'!H20 -> 1362.822652 | F166: =F95+'Ne pas toucher'!I20 -> 88531.29485 | H166: 15 | I166: 2033-01-01 | J166: =J95+'Ne pas toucher'!F20+'A remplir'!J$92 -> 3906.666667 | K166: =K95+'Ne pas toucher'!G20 -> 2666.666667 | L166: =L95+'Ne pas toucher'!H20 -> 1240 | M166: =IF(M165>0.001,M95+'Ne pas toucher'!I20,0) -> 80000
A167: 16 | B167: 2034-01-01 | C167: =C96+'Ne pas toucher'!F21+'A remplir'!J$92 -> 3686.371253 | D167: =D96+'Ne pas toucher'!G21 -> 2358.401831 | E167: =E96+'Ne pas toucher'!H21 -> 1327.969423 | F167: =F96+'Ne pas toucher'!I21 -> 86172.89302 | H167: 16 | I167: 2034-01-01 | J167: =J96+'Ne pas toucher'!F21+'A remplir'!J$92 -> 3866.666667 | K167: =K96+'Ne pas toucher'!G21 -> 2666.666667 | L167: =L96+'Ne pas toucher'!H21 -> 1200 | M167: =IF(M166>0.001,M96+'Ne pas toucher'!I21,0) -> 77333.33333
A168: 17 | B168: 2035-01-01 | C168: =C97+'Ne pas toucher'!F22+'A remplir'!J$92 -> 3686.371253 | D168: =D97+'Ne pas toucher'!G22 -> 2393.777858 | E168: =E97+'Ne pas toucher'!H22 -> 1292.593395 | F168: =F97+'Ne pas toucher'!I22 -> 83779.11516 | H168: 17 | I168: 2035-01-01 | J168: =J97+'Ne pas toucher'!F22+'A remplir'!J$92 -> 3826.666667 | K168: =K97+'Ne pas toucher'!G22 -> 2666.666667 | L168: =L97+'Ne pas toucher'!H22 -> 1160 | M168: =IF(M167>0.001,M97+'Ne pas toucher'!I22,0) -> 74666.66667
A169: 18 | B169: 2036-01-01 | C169: =C98+'Ne pas toucher'!F23+'A remplir'!J$92 -> 3686.371253 | D169: =D98+'Ne pas toucher'!G23 -> 2429.684526 | E169: =E98+'Ne pas toucher'!H23 -> 1256.686727 | F169: =F98+'Ne pas toucher'!I23 -> 81349.43064 | H169: 18 | I169: 2036-01-01 | J169: =J98+'Ne pas toucher'!F23+'A remplir'!J$92 -> 3786.666667 | K169: =K98+'Ne pas toucher'!G23 -> 2666.666667 | L169: =L98+'Ne pas toucher'!H23 -> 1120 | M169: =IF(M168>0.001,M98+'Ne pas toucher'!I23,0) -> 72000
A170: 19 | B170: 2037-01-01 | C170: =C99+'Ne pas toucher'!F24 -> 3686.371253 | D170: =D99+'Ne pas toucher'!G24 -> 2466.129794 | E170: =E99+'Ne pas toucher'!H24 -> 1220.24146 | F170: =F99+'Ne pas toucher'!I24 -> 78883.30084 | H170: 19 | I170: 2037-01-01 | J170: =J99+'Ne pas toucher'!F24 -> 3746.666667 | K170: =K99+'Ne pas toucher'!G24 -> 2666.666667 | L170: =L99+'Ne pas toucher'!H24 -> 1080 | M170: =IF(M169>0.001,M99+'Ne pas toucher'!I24,0) -> 69333.33333
A171: 20 | B171: 2038-01-01 | C171: =C100+'Ne pas toucher'!F25 -> 3686.371253 | D171: =D100+'Ne pas toucher'!G25 -> 2503.121741 | E171: =E100+'Ne pas toucher'!H25 -> 1183.249513 | F171: =F100+'Ne pas toucher'!I25 -> 76380.1791 | H171: 20 | I171: 2038-01-01 | J171: =J100+'Ne pas toucher'!F25 -> 3706.666667 | K171: =K100+'Ne pas toucher'!G25 -> 2666.666667 | L171: =L100+'Ne pas toucher'!H25 -> 1040 | M171: =IF(M170>0.001,M100+'Ne pas toucher'!I25,0) -> 66666.66667
A172: 21 | B172: 2039-01-01 | C172: =C101+'Ne pas toucher'!F26 -> 3686.371253 | D172: =D101+'Ne pas toucher'!G26 -> 2540.668567 | E172: =E101+'Ne pas toucher'!H26 -> 1145.702687 | F172: =F101+'Ne pas toucher'!I26 -> 73839.51054 | H172: 21 | I172: 2039-01-01 | J172: =J101+'Ne pas toucher'!F26 -> 3666.666667 | K172: =K101+'Ne pas toucher'!G26 -> 2666.666667 | L172: =L101+'Ne pas toucher'!H26 -> 1000 | M172: =IF(M171>0.001,M101+'Ne pas toucher'!I26,0) -> 64000
A173: 22 | B173: 2040-01-01 | C173: =C102+'Ne pas toucher'!F27 -> 3686.371253 | D173: =D102+'Ne pas toucher'!G27 -> 2578.778595 | E173: =E102+'Ne pas toucher'!H27 -> 1107.592658 | F173: =F102+'Ne pas toucher'!I27 -> 71260.73194 | H173: 22 | I173: 2040-01-01 | J173: =J102+'Ne pas toucher'!F27 -> 3626.666667 | K173: =K102+'Ne pas toucher'!G27 -> 2666.666667 | L173: =L102+'Ne pas toucher'!H27 -> 960 | M173: =IF(M172>0.001,M102+'Ne pas toucher'!I27,0) -> 61333.33333
A174: 23 | B174: 2041-01-01 | C174: =C103+'Ne pas toucher'!F28 -> 3686.371253 | D174: =D103+'Ne pas toucher'!G28 -> 2617.460274 | E174: =E103+'Ne pas toucher'!H28 -> 1068.910979 | F174: =F103+'Ne pas toucher'!I28 -> 68643.27167 | H174: 23 | I174: 2041-01-01 | J174: =J103+'Ne pas toucher'!F28 -> 3586.666667 | K174: =K103+'Ne pas toucher'!G28 -> 2666.666667 | L174: =L103+'Ne pas toucher'!H28 -> 920 | M174: =IF(M173>0.001,M103+'Ne pas toucher'!I28,0) -> 58666.66667
A175: 24 | B175: 2042-01-01 | C175: =C104+'Ne pas toucher'!F29 -> 3686.371253 | D175: =D104+'Ne pas toucher'!G29 -> 2656.722178 | E175: =E104+'Ne pas toucher'!H29 -> 1029.649075 | F175: =F104+'Ne pas toucher'!I29 -> 65986.54949 | H175: 24 | I175: 2042-01-01 | J175: =J104+'Ne pas toucher'!F29 -> 3546.666667 | K175: =K104+'Ne pas toucher'!G29 -> 2666.666667 | L175: =L104+'Ne pas toucher'!H29 -> 880 | M175: =IF(M174>0.001,M104+'Ne pas toucher'!I29,0) -> 56000
A176: 25 | B176: 2043-01-01 | C176: =C105+'Ne pas toucher'!F30 -> 3686.371253 | D176: =D105+'Ne pas toucher'!G30 -> 2696.573011 | E176: =E105+'Ne pas toucher'!H30 -> 989.7982423 | F176: =F105+'Ne pas toucher'!I30 -> 63289.97648 | H176: 25 | I176: 2043-01-01 | J176: =J105+'Ne pas toucher'!F30 -> 3506.666667 | K176: =K105+'Ne pas toucher'!G30 -> 2666.666667 | L176: =L105+'Ne pas toucher'!H30 -> 840 | M176: =IF(M175>0.001,M105+'Ne pas toucher'!I30,0) -> 53333.33333
A177: 26 | B177: 2044-01-01 | C177: =C106+'Ne pas toucher'!F31 -> 3686.371253 | D177: =D106+'Ne pas toucher'!G31 -> 2737.021606 | E177: =E106+'Ne pas toucher'!H31 -> 949.3496472 | F177: =F106+'Ne pas toucher'!I31 -> 60552.95487 | H177: 26 | I177: 2044-01-01 | J177: =J106+'Ne pas toucher'!F31 -> 3466.666667 | K177: =K106+'Ne pas toucher'!G31 -> 2666.666667 | L177: =L106+'Ne pas toucher'!H31 -> 800 | M177: =IF(M176>0.001,M106+'Ne pas toucher'!I31,0) -> 50666.66667
A178: 27 | B178: 2045-01-01 | C178: =C107+'Ne pas toucher'!F32 -> 3686.371253 | D178: =D107+'Ne pas toucher'!G32 -> 2778.07693 | E178: =E107+'Ne pas toucher'!H32 -> 908.2943231 | F178: =F107+'Ne pas toucher'!I32 -> 57774.87794 | H178: 27 | I178: 2045-01-01 | J178: =J107+'Ne pas toucher'!F32 -> 3426.666667 | K178: =K107+'Ne pas toucher'!G32 -> 2666.666667 | L178: =L107+'Ne pas toucher'!H32 -> 760 | M178: =IF(M177>0.001,M107+'Ne pas toucher'!I32,0) -> 48000
A179: 28 | B179: 2046-01-01 | C179: =C108+'Ne pas toucher'!F33 -> 3686.371253 | D179: =D108+'Ne pas toucher'!G33 -> 2819.748084 | E179: =E108+'Ne pas toucher'!H33 -> 866.6231691 | F179: =F108+'Ne pas toucher'!I33 -> 54955.12986 | H179: 28 | I179: 2046-01-01 | J179: =J108+'Ne pas toucher'!F33 -> 3386.666667 | K179: =K108+'Ne pas toucher'!G33 -> 2666.666667 | L179: =L108+'Ne pas toucher'!H33 -> 720 | M179: =IF(M178>0.001,M108+'Ne pas toucher'!I33,0) -> 45333.33333
A180: 29 | B180: 2047-01-01 | C180: =C109+'Ne pas toucher'!F34 -> 3686.371253 | D180: =D109+'Ne pas toucher'!G34 -> 2862.044306 | E180: =E109+'Ne pas toucher'!H34 -> 824.3269478 | F180: =F109+'Ne pas toucher'!I34 -> 52093.08555 | H180: 29 | I180: 2047-01-01 | J180: =J109+'Ne pas toucher'!F34 -> 3346.666667 | K180: =K109+'Ne pas toucher'!G34 -> 2666.666667 | L180: =L109+'Ne pas toucher'!H34 -> 680 | M180: =IF(M179>0.001,M109+'Ne pas toucher'!I34,0) -> 42666.66667
A181: 30 | B181: 2048-01-01 | C181: =C110+'Ne pas toucher'!F35 -> 3686.371253 | D181: =D110+'Ne pas toucher'!G35 -> 2904.97497 | E181: =E110+'Ne pas toucher'!H35 -> 781.3962833 | F181: =F110+'Ne pas toucher'!I35 -> 49188.11058 | H181: 30 | I181: 2048-01-01 | J181: =J110+'Ne pas toucher'!F35 -> 3306.666667 | K181: =K110+'Ne pas toucher'!G35 -> 2666.666667 | L181: =L110+'Ne pas toucher'!H35 -> 640 | M181: =IF(M180>0.001,M110+'Ne pas toucher'!I35,0) -> 40000
A182: 31 | B182: 2049-01-01 | C182: =C111+'Ne pas toucher'!F36 -> 3686.371253 | D182: =D111+'Ne pas toucher'!G36 -> 2948.549595 | E182: =E111+'Ne pas toucher'!H36 -> 737.8216587 | F182: =F111+'Ne pas toucher'!I36 -> 46239.56099 | H182: 31 | I182: 2049-01-01 | J182: =J111+'Ne pas toucher'!F36 -> 3266.666667 | K182: =K111+'Ne pas toucher'!G36 -> 2666.666667 | L182: =L111+'Ne pas toucher'!H36 -> 600 | M182: =IF(M181>0.001,M111+'Ne pas toucher'!I36,0) -> 37333.33333
A183: 32 | B183: 2050-01-01 | C183: =C112+'Ne pas toucher'!F37 -> 3686.371253 | D183: =D112+'Ne pas toucher'!G37 -> 2992.777839 | E183: =E112+'Ne pas toucher'!H37 -> 693.5934148 | F183: =F112+'Ne pas toucher'!I37 -> 43246.78315 | H183: 32 | I183: 2050-01-01 | J183: =J112+'Ne pas toucher'!F37 -> 3226.666667 | K183: =K112+'Ne pas toucher'!G37 -> 2666.666667 | L183: =L112+'Ne pas toucher'!H37 -> 560 | M183: =IF(M182>0.001,M112+'Ne pas toucher'!I37,0) -> 34666.66667
A184: 33 | B184: 2051-01-01 | C184: =C113+'Ne pas toucher'!F38 -> 3686.371253 | D184: =D113+'Ne pas toucher'!G38 -> 3037.669506 | E184: =E113+'Ne pas toucher'!H38 -> 648.7017472 | F184: =F113+'Ne pas toucher'!I38 -> 40209.11364 | H184: 33 | I184: 2051-01-01 | J184: =J113+'Ne pas toucher'!F38 -> 3186.666667 | K184: =K113+'Ne pas toucher'!G38 -> 2666.666667 | L184: =L113+'Ne pas toucher'!H38 -> 520 | M184: =IF(M183>0.001,M113+'Ne pas toucher'!I38,0) -> 32000
A185: 34 | B185: 2052-01-01 | C185: =C114+'Ne pas toucher'!F39 -> 3686.371253 | D185: =D114+'Ne pas toucher'!G39 -> 3083.234549 | E185: =E114+'Ne pas toucher'!H39 -> 603.1367046 | F185: =F114+'Ne pas toucher'!I39 -> 37125.87909 | H185: 34 | I185: 2052-01-01 | J185: =J114+'Ne pas toucher'!F39 -> 3146.666667 | K185: =K114+'Ne pas toucher'!G39 -> 2666.666667 | L185: =L114+'Ne pas toucher'!H39 -> 480 | M185: =IF(M184>0.001,M114+'Ne pas toucher'!I39,0) -> 29333.33333
A186: 35 | B186: 2053-01-01 | C186: =C115+'Ne pas toucher'!F40 -> 3686.371253 | D186: =D115+'Ne pas toucher'!G40 -> 3129.483067 | E186: =E115+'Ne pas toucher'!H40 -> 556.8881864 | F186: =F115+'Ne pas toucher'!I40 -> 33996.39603 | H186: 35 | I186: 2053-01-01 | J186: =J115+'Ne pas toucher'!F40 -> 3106.666667 | K186: =K115+'Ne pas toucher'!G40 -> 2666.666667 | L186: =L115+'Ne pas toucher'!H40 -> 440 | M186: =IF(M185>0.001,M115+'Ne pas toucher'!I40,0) -> 26666.66667
A187: 36 | B187: 2054-01-01 | C187: =C116+'Ne pas toucher'!F41 -> 3686.371253 | D187: =D116+'Ne pas toucher'!G41 -> 3176.425313 | E187: =E116+'Ne pas toucher'!H41 -> 509.9459404 | F187: =F116+'Ne pas toucher'!I41 -> 30819.97071 | H187: 36 | I187: 2054-01-01 | J187: =J116+'Ne pas toucher'!F41 -> 3066.666667 | K187: =K116+'Ne pas toucher'!G41 -> 2666.666667 | L187: =L116+'Ne pas toucher'!H41 -> 400 | M187: =IF(M186>0.001,M116+'Ne pas toucher'!I41,0) -> 24000
A188: 37 | B188: 2055-01-01 | C188: =C117+'Ne pas toucher'!F42 -> 3686.371253 | D188: =D117+'Ne pas toucher'!G42 -> 3224.071693 | E188: =E117+'Ne pas toucher'!H42 -> 462.2995607 | F188: =F117+'Ne pas toucher'!I42 -> 27595.89902 | H188: 37 | I188: 2055-01-01 | J188: =J117+'Ne pas toucher'!F42 -> 3026.666667 | K188: =K117+'Ne pas toucher'!G42 -> 2666.666667 | L188: =L117+'Ne pas toucher'!H42 -> 360 | M188: =IF(M187>0.001,M117+'Ne pas toucher'!I42,0) -> 21333.33333
A189: 38 | B189: 2056-01-01 | C189: =C118+'Ne pas toucher'!F43 -> 3686.371253 | D189: =D118+'Ne pas toucher'!G43 -> 3272.432768 | E189: =E118+'Ne pas toucher'!H43 -> 413.9384853 | F189: =F118+'Ne pas toucher'!I43 -> 24323.46625 | H189: 38 | I189: 2056-01-01 | J189: =J118+'Ne pas toucher'!F43 -> 2986.666667 | K189: =K118+'Ne pas toucher'!G43 -> 2666.666667 | L189: =L118+'Ne pas toucher'!H43 -> 320 | M189: =IF(M188>0.001,M118+'Ne pas toucher'!I43,0) -> 18666.66667
A190: 39 | B190: 2057-01-01 | C190: =C119+'Ne pas toucher'!F44 -> 3686.371253 | D190: =D119+'Ne pas toucher'!G44 -> 3321.51926 | E190: =E119+'Ne pas toucher'!H44 -> 364.8519938 | F190: =F119+'Ne pas toucher'!I44 -> 21001.94699 | H190: 39 | I190: 2057-01-01 | J190: =J119+'Ne pas toucher'!F44 -> 2946.666667 | K190: =K119+'Ne pas toucher'!G44 -> 2666.666667 | L190: =L119+'Ne pas toucher'!H44 -> 280 | M190: =IF(M189>0.001,M119+'Ne pas toucher'!I44,0) -> 16000
A191: 40 | B191: 2058-01-01 | C191: =C120+'Ne pas toucher'!F45 -> 3686.371253 | D191: =D120+'Ne pas toucher'!G45 -> 3371.342049 | E191: =E120+'Ne pas toucher'!H45 -> 315.0292049 | F191: =F120+'Ne pas toucher'!I45 -> 17630.60494 | H191: 40 | I191: 2058-01-01 | J191: =J120+'Ne pas toucher'!F45 -> 2906.666667 | K191: =K120+'Ne pas toucher'!G45 -> 2666.666667 | L191: =L120+'Ne pas toucher'!H45 -> 240 | M191: =IF(M190>0.001,M120+'Ne pas toucher'!I45,0) -> 13333.33333
A192: 41 | B192: 2059-01-01 | C192: =C121+'Ne pas toucher'!F46 -> 3686.371253 | D192: =D121+'Ne pas toucher'!G46 -> 3421.912179 | E192: =E121+'Ne pas toucher'!H46 -> 264.4590742 | F192: =F121+'Ne pas toucher'!I46 -> 14208.69276 | H192: 41 | I192: 2059-01-01 | J192: =J121+'Ne pas toucher'!F46 -> 2866.666667 | K192: =K121+'Ne pas toucher'!G46 -> 2666.666667 | L192: =L121+'Ne pas toucher'!H46 -> 200 | M192: =IF(M191>0.001,M121+'Ne pas toucher'!I46,0) -> 10666.66667
A193: 42 | B193: 2060-01-01 | C193: =C122+'Ne pas toucher'!F47 -> 3686.371253 | D193: =D122+'Ne pas toucher'!G47 -> 3473.240862 | E193: =E122+'Ne pas toucher'!H47 -> 213.1303915 | F193: =F122+'Ne pas toucher'!I47 -> 10735.4519 | H193: 42 | I193: 2060-01-01 | J193: =J122+'Ne pas toucher'!F47 -> 2826.666667 | K193: =K122+'Ne pas toucher'!G47 -> 2666.666667 | L193: =L122+'Ne pas toucher'!H47 -> 160 | M193: =IF(M192>0.001,M122+'Ne pas toucher'!I47,0) -> 8000
A194: 43 | B194: 2061-01-01 | C194: =C123+'Ne pas toucher'!F48 -> 3686.371253 | D194: =D123+'Ne pas toucher'!G48 -> 3525.339475 | E194: =E123+'Ne pas toucher'!H48 -> 161.0317785 | F194: =F123+'Ne pas toucher'!I48 -> 7210.112427 | H194: 43 | I194: 2061-01-01 | J194: =J123+'Ne pas toucher'!F48 -> 2786.666667 | K194: =K123+'Ne pas toucher'!G48 -> 2666.666667 | L194: =L123+'Ne pas toucher'!H48 -> 120 | M194: =IF(M193>0.001,M123+'Ne pas toucher'!I48,0) -> 5333.333333
A195: 44 | B195: 2062-01-01 | C195: =C124+'Ne pas toucher'!F49 -> 3686.371253 | D195: =D124+'Ne pas toucher'!G49 -> 3578.219567 | E195: =E124+'Ne pas toucher'!H49 -> 108.1516864 | F195: =F124+'Ne pas toucher'!I49 -> 3631.89286 | H195: 44 | I195: 2062-01-01 | J195: =J124+'Ne pas toucher'!F49 -> 2746.666667 | K195: =K124+'Ne pas toucher'!G49 -> 2666.666667 | L195: =L124+'Ne pas toucher'!H49 -> 80 | M195: =IF(M194>0.001,M124+'Ne pas toucher'!I49,0) -> 2666.666667
A196: 45 | B196: 2063-01-01 | C196: =C125+'Ne pas toucher'!F50 -> 3686.371253 | D196: =D125+'Ne pas toucher'!G50 -> 3631.89286 | E196: =E125+'Ne pas toucher'!H50 -> 54.47839291 | F196: =F125+'Ne pas toucher'!I50 -> -1.479293132e-09 | H196: 45 | I196: 2063-01-01 | J196: =J125+'Ne pas toucher'!F50 -> 0 | K196: =K125+'Ne pas toucher'!G50 -> 0 | L196: =L125+'Ne pas toucher'!H50 -> 40 | M196: =IF(M195>0.001,M125+'Ne pas toucher'!I50,0) -> -7.185008144e-11
A197: 46 | B197: 2064-01-01 | C197: =C126+'Ne pas toucher'!F51 -> 0 | D197: =D126+'Ne pas toucher'!G51 -> 2.218939699e-11 | E197: =E126+'Ne pas toucher'!H51 -> -2.218939699e-11 | F197: =F126+'Ne pas toucher'!I51 -> 0 | H197: 46 | I197: 2064-01-01 | J197: =J126+'Ne pas toucher'!F51 -> 0 | K197: =K126+'Ne pas toucher'!G51 -> 0 | L197: =L126+'Ne pas toucher'!H51 -> -1.077751222e-12 | M197: =IF(M196>0.001,M126+'Ne pas toucher'!I51,0) -> 0
A198: 47 | B198: 2065-01-01 | C198: =C127+'Ne pas toucher'!F52 -> 0 | D198: =D127+'Ne pas toucher'!G52 -> 0 | E198: =E127+'Ne pas toucher'!H52 -> 0 | F198: =F127+'Ne pas toucher'!I52 -> 0 | H198: 47 | I198: 2065-01-01 | J198: =J127+'Ne pas toucher'!F52 -> 0 | K198: =K127+'Ne pas toucher'!G52 -> 0 | L198: =L127+'Ne pas toucher'!H52 -> 0 | M198: =IF(M197>0.001,M127+'Ne pas toucher'!I52,0) -> 0
A199: 48 | B199: 2066-01-01 | C199: =C128+'Ne pas toucher'!F53 -> 0 | D199: =D128+'Ne pas toucher'!G53 -> 0 | E199: =E128+'Ne pas toucher'!H53 -> 0 | F199: =F128+'Ne pas toucher'!I53 -> 0 | H199: 48 | I199: 2066-01-01 | J199: =J128+'Ne pas toucher'!F53 -> 0 | K199: =K128+'Ne pas toucher'!G53 -> 0 | L199: =L128+'Ne pas toucher'!H53 -> 0 | M199: =IF(M198>0.001,M128+'Ne pas toucher'!I53,0) -> 0
A200: 49 | B200: 2067-01-01 | C200: =C129+'Ne pas toucher'!F54 -> 0 | D200: =D129+'Ne pas toucher'!G54 -> 0 | E200: =E129+'Ne pas toucher'!H54 -> 0 | F200: =F129+'Ne pas toucher'!I54 -> 0 | H200: 49 | I200: 2067-01-01 | J200: =J129+'Ne pas toucher'!F54 -> 0 | K200: =K129+'Ne pas toucher'!G54 -> 0 | L200: =L129+'Ne pas toucher'!H54 -> 0 | M200: =IF(M199>0.001,M129+'Ne pas toucher'!I54,0) -> 0
A201: 50 | B201: 2068-01-01 | C201: =C130+'Ne pas toucher'!F55 -> 0 | D201: =D130+'Ne pas toucher'!G55 -> 0 | E201: =E130+'Ne pas toucher'!H55 -> 0 | F201: =F130+'Ne pas toucher'!I55 -> 0 | H201: 50 | I201: 2068-01-01 | J201: =J130+'Ne pas toucher'!F55 -> 0 | K201: =K130+'Ne pas toucher'!G55 -> 0 | L201: =L130+'Ne pas toucher'!H55 -> 0 | M201: =IF(M200>0.001,M130+'Ne pas toucher'!I55,0) -> 0
A202: 51 | B202: 2069-01-01 | C202: =C131+'Ne pas toucher'!F56 -> 0 | D202: =D131+'Ne pas toucher'!G56 -> 0 | E202: =E131+'Ne pas toucher'!H56 -> 0 | F202: =F131+'Ne pas toucher'!I56 -> 0 | H202: 51 | I202: 2069-01-01 | J202: =J131+'Ne pas toucher'!F56 -> 0 | K202: =K131+'Ne pas toucher'!G56 -> 0 | L202: =L131+'Ne pas toucher'!H56 -> 0 | M202: =IF(M201>0.001,M131+'Ne pas toucher'!I56,0) -> 0
A203: 52 | B203: 2070-01-01 | C203: =C132+'Ne pas toucher'!F57 -> 0 | D203: =D132+'Ne pas toucher'!G57 -> 0 | E203: =E132+'Ne pas toucher'!H57 -> 0 | F203: =F132+'Ne pas toucher'!I57 -> 0 | H203: 52 | I203: 2070-01-01 | J203: =J132+'Ne pas toucher'!F57 -> 0 | K203: =K132+'Ne pas toucher'!G57 -> 0 | L203: =L132+'Ne pas toucher'!H57 -> 0 | M203: =IF(M202>0.001,M132+'Ne pas toucher'!I57,0) -> 0
A204: 53 | B204: 2071-01-01 | C204: =C133+'Ne pas toucher'!F58 -> 0 | D204: =D133+'Ne pas toucher'!G58 -> 0 | E204: =E133+'Ne pas toucher'!H58 -> 0 | F204: =F133+'Ne pas toucher'!I58 -> 0 | H204: 53 | I204: 2071-01-01 | J204: =J133+'Ne pas toucher'!F58 -> 0 | K204: =K133+'Ne pas toucher'!G58 -> 0 | L204: =L133+'Ne pas toucher'!H58 -> 0 | M204: =IF(M203>0.001,M133+'Ne pas toucher'!I58,0) -> 0
A205: 54 | B205: 2072-01-01 | C205: =C134+'Ne pas toucher'!F59 -> 0 | D205: =D134+'Ne pas toucher'!G59 -> 0 | E205: =E134+'Ne pas toucher'!H59 -> 0 | F205: =F134+'Ne pas toucher'!I59 -> 0 | H205: 54 | I205: 2072-01-01 | J205: =J134+'Ne pas toucher'!F59 -> 0 | K205: =K134+'Ne pas toucher'!G59 -> 0 | L205: =L134+'Ne pas toucher'!H59 -> 0 | M205: =IF(M204>0.001,M134+'Ne pas toucher'!I59,0) -> 0
A206: 55 | B206: 2073-01-01 | C206: =C135+'Ne pas toucher'!F60 -> 0 | D206: =D135+'Ne pas toucher'!G60 -> 0 | E206: =E135+'Ne pas toucher'!H60 -> 0 | F206: =F135+'Ne pas toucher'!I60 -> 0 | H206: 55 | I206: 2073-01-01 | J206: =J135+'Ne pas toucher'!F60 -> 0 | K206: =K135+'Ne pas toucher'!G60 -> 0 | L206: =L135+'Ne pas toucher'!H60 -> 0 | M206: =IF(M205>0.001,M135+'Ne pas toucher'!I60,0) -> 0
A207: 56 | B207: 2074-01-01 | C207: =C136+'Ne pas toucher'!F61 -> 0 | D207: =D136+'Ne pas toucher'!G61 -> 0 | E207: =E136+'Ne pas toucher'!H61 -> 0 | F207: =F136+'Ne pas toucher'!I61 -> 0 | H207: 56 | I207: 2074-01-01 | J207: =J136+'Ne pas toucher'!F61 -> 0 | K207: =K136+'Ne pas toucher'!G61 -> 0 | L207: =L136+'Ne pas toucher'!H61 -> 0 | M207: =IF(M206>0.001,M136+'Ne pas toucher'!I61,0) -> 0
A208: 57 | B208: 2075-01-01 | C208: =C137+'Ne pas toucher'!F62 -> 0 | D208: =D137+'Ne pas toucher'!G62 -> 0 | E208: =E137+'Ne pas toucher'!H62 -> 0 | F208: =F137+'Ne pas toucher'!I62 -> 0 | H208: 57 | I208: 2075-01-01 | J208: =J137+'Ne pas toucher'!F62 -> 0 | K208: =K137+'Ne pas toucher'!G62 -> 0 | L208: =L137+'Ne pas toucher'!H62 -> 0 | M208: =IF(M207>0.001,M137+'Ne pas toucher'!I62,0) -> 0
A209: 58 | B209: 2076-01-01 | C209: =C138+'Ne pas toucher'!F63 -> 0 | D209: =D138+'Ne pas toucher'!G63 -> 0 | E209: =E138+'Ne pas toucher'!H63 -> 0 | F209: =F138+'Ne pas toucher'!I63 -> 0 | H209: 58 | I209: 2076-01-01 | J209: =J138+'Ne pas toucher'!F63 -> 0 | K209: =K138+'Ne pas toucher'!G63 -> 0 | L209: =L138+'Ne pas toucher'!H63 -> 0 | M209: =IF(M208>0.001,M138+'Ne pas toucher'!I63,0) -> 0
A210: 59 | B210: 2077-01-01 | C210: =C139+'Ne pas toucher'!F64 -> 0 | D210: =D139+'Ne pas toucher'!G64 -> 0 | E210: =E139+'Ne pas toucher'!H64 -> 0 | F210: =F139+'Ne pas toucher'!I64 -> 0 | H210: 59 | I210: 2077-01-01 | J210: =J139+'Ne pas toucher'!F64 -> 0 | K210: =K139+'Ne pas toucher'!G64 -> 0 | L210: =L139+'Ne pas toucher'!H64 -> 0 | M210: =IF(M209>0.001,M139+'Ne pas toucher'!I64,0) -> 0
A211: 60 | B211: 2078-01-01 | C211: =C140+'Ne pas toucher'!F65 -> 0 | D211: =D140+'Ne pas toucher'!G65 -> 0 | E211: =E140+'Ne pas toucher'!H65 -> 0 | F211: =F140+'Ne pas toucher'!I65 -> 0 | H211: 60 | I211: 2078-01-01 | J211: =J140+'Ne pas toucher'!F65 -> 0 | K211: =K140+'Ne pas toucher'!G65 -> 0 | L211: =L140+'Ne pas toucher'!H65 -> 0 | M211: =IF(M210>0.001,M140+'Ne pas toucher'!I65,0) -> 0
B214: Coût total : | C214: =SUM(C152:C211) -> 165886.7064 | I214: Coût total: | J214: =SUM(J152:J211) -> 158693.3333
